Workbook

Sheet 12.2
A6: RANDOM DATA
F8: 25 | H8: 5
A10: 5 | B10: 5 | C10: 24 | D10: 18 | E10: 23 | F10: -17.54694126 | G10: -19.80535 | H10: =($A10-$H$8)+($H$8*RAND()) -> 3.308268564 | I10: =($A10-$H$8)+($H$8*RAND()) -> 4.579861703 | J10: 0 | K10: =SIN(RADIANS(J10)) -> 0 | L10: =A10^4 -> 625 | N10: 48.26618634 | O10: 14.02535645 | Q10: 15 | R10: 15 | X10: 5 | Y10: 24 | AF10: DIRECTION
A11: 6 | B11: 6 | C11: 23 | D11: 27 | E11: 16 | F11: 4.585306648 | G11: -18.52273633 | H11: =($A11-$H$8)+($H$8*RAND()) -> 4.670613808 | I11: 2.149188803 | J11: 4 | K11: =SIN(RADIANS(J11)) -> 0.06975647374 | L11: =A11^4 -> 1296 | N11: 44.21369373 | O11: 19.70427198 | Q11: 15 | R11: 15 | X11: 6 | Y11: 23 | AF11: Positive (+1) | AH11: Negative (-1) | AJ11: No correlation (0)
A12: 7 | B12: 7 | C12: 22 | D12: 25 | E12: 6 | F12: -16.80234267 | G12: 3.639294679 | H12: 4.745363054 | I12: 4.134082123 | J12: 8 | K12: 0.139173101 | L12: 2401 | N12: 11.78621771 | O12: 56.0226672 | Q12: 15 | R12: 15 | X12: 7 | Y12: 22
A13: 8 | B13: 8 | C13: 21 | D13: 3 | E13: 5 | F13: -3.213993559 | G13: -10.13925842 | H13: 6.865639343 | I13: 4.469879479 | J13: 12 | K13: 0.2079116908 | L13: 4096 | N13: 55.01574305 | O13: 26.54959243 | Q13: 15 | R13: 15 | X13: 8 | Y13: 21
A14: 9 | B14: 9 | C14: 20 | D14: 25 | E14: 20 | F14: -11.15484258 | G14: 7.768273945 | H14: 8.401914125 | I14: 8.408879384 | J14: 16 | K14: 0.2756373558 | L14: 6561 | N14: 21.89891916 | O14: 34.39565893 | Q14: 15 | R14: 15 | X14: 9 | Y14: 20
A15: 10 | B15: 10 | C15: 19 | D15: 5 | E15: 7 | F15: 9.432178156 | G15: 1.738982338 | H15: 5.607505518 | I15: 8.605498401 | J15: 20 | K15: 0.3420201433 | L15: 10000 | N15: 43.52589169 | O15: 50.90832972 | Q15: 15 | R15: 15 | X15: 10 | Y15: 19
A16: 11 | B16: 11 | C16: 18 | D16: 16 | E16: 12 | F16: 3.260697441 | G16: -8.301396645 | H16: 10.3581603 | I16: 10.57041251 | J16: 24 | K16: 0.4067366431 | L16: 14641 | N16: 26.22570744 | O16: 4.913261025 | Q16: 15 | R16: 15 | X16: 11 | Y16: 18
A17: 12 | B17: 12 | C17: 17 | D17: 12 | E17: 14 | F17: 5.864307461 | G17: 7.021274591 | H17: 10.22877538 | I17: 11.67735599 | J17: 28 | K17: 0.4694715628 | L17: 20736 | N17: 48.28852749 | O17: 25.26852505 | Q17: 15 | R17: 15 | U17: =($A17-$H$8)+($H$8*RAND()) -> 9.114824309 | V17: =($A17-$H$8)+($H$8*RAND()) -> 11.60906084 | X17: 12 | Y17: 17 | AA17: 10 | AB17: 40
A18: 13 | B18: 13 | C18: 16 | D18: 18 | E18: 22 | F18: 7.536625462 | G18: 4.875675324 | H18: 12.94523306 | I18: 10.01311198 | J18: 32 | K18: 0.5299192642 | L18: 28561 | N18: 0.5490848776 | O18: 49.90804766 | Q18: 15 | R18: 15 | U18: 11.21328453 | V18: 12.01309954 | X18: 13 | Y18: 16 | AA18: 14.83783053 | AB18: 36.78485848
A19: 14 | B19: 14 | C19: 15 | D19: 3 | E19: 14 | F19: 7.826847671 | G19: 7.219378101 | H19: 10.66532804 | I19: 9.928205477 | J19: 36 | K19: 0.5877852523 | L19: 38416 | N19: 38.86028783 | O19: 37.71988311 | Q19: 15 | R19: 15 | U19: 12.98134169 | V19: 11.03725526 | X19: 14 | Y19: 15 | AA19: 19.13032023 | AB19: 34.15644123 | AF19: STRENGTH
A20: 15 | B20: 15 | C20: 14 | D20: 23 | E20: 5 | F20: 2.291969066 | G20: -2.466375674 | H20: 13.89602187 | I20: 13.23635795 | J20: 40 | K20: 0.6427876097 | L20: 50625 | N20: 30.38050537 | O20: 57.63832631 | Q20: 15 | R20: 15 | U20: 10.87923909 | V20: 12.65182846 | X20: 15 | Y20: 14 | AA20: 21.8782354 | AB20: 31.08494248 | AF20: Strong | AH20: Weak | AJ20: No correlation
A21: 16 | B21: 16 | C21: 13 | D21: 23 | E21: 20 | F21: 0.8547877221 | G21: 12.53258513 | H21: 13.94017138 | I21: 15.83389214 | J21: 44 | K21: 0.6946583705 | L21: 65536 | N21: 21.32377075 | O21: 29.09418057 | Q21: 15 | R21: 15 | U21: 13.49847484 | V21: 15.45964915 | X21: 16 | Y21: 13 | AA21: 25.25337902 | AB21: 29.93900119
A22: 17 | B22: 17 | C22: 12 | D22: 12 | E22: 5 | F22: 0.3157690593 | G22: 4.111737856 | H22: 16.85441787 | I22: 15.01183047 | J22: 48 | K22: 0.7431448255 | L22: 83521 | N22: 4.236254763 | O22: 22.48482114 | Q22: 15 | R22: 15 | U22: 13.11988137 | V22: 15.93868529 | X22: 17 | Y22: 12 | AA22: 29.54793312 | AB22: 28.07895817
A23: 18 | B23: 18 | C23: 11 | D23: 3 | E23: 9 | F23: 6.117435415 | G23: 1.964297933 | H23: 13.4366338 | I23: 15.47411875 | J23: 52 | K23: 0.7880107536 | L23: 104976 | N23: 41.94598738 | O23: 49.28401392 | Q23: 15 | R23: 15 | U23: 17.34757086 | V23: 15.50552075 | X23: 18 | Y23: 11 | AA23: 33.20131215 | AB23: 23.31046196
A24: 19 | B24: 19 | C24: 10 | D24: 28 | E24: 7 | F24: 11.94931684 | G24: 13.61540264 | H24: 18.36635314 | I24: 14.28374103 | J24: 56 | K24: 0.8290375726 | L24: 130321 | N24: 51.46765827 | O24: 35.26751424 | Q24: 15 | R24: 15 | U24: 15.5190971 | V24: 17.41630729 | X24: 19 | Y24: 25 | AA24: 36.33901396 | AB24: 20.6746009
A25: 20 | B25: 20 | C25: 9 | D25: 4 | E25: 22 | F25: 3.712790293 | G25: 16.3013402 | H25: 18.35871516 | I25: 19.50694546 | J25: 60 | K25: 0.8660254038 | L25: 160000 | N25: 56.38606578 | O25: 6.291282021 | Q25: 15 | R25: 15 | U25: 19.26654202 | V25: 17.96697837 | X25: 20 | Y25: 9 | AA25: 39.80616698 | AB25: 18.58641376
A26: 21 | B26: 21 | C26: 8 | D26: 8 | E26: 16 | F26: 2.283937385 | G26: 5.407681529 | H26: 20.12344608 | I26: 19.93883375 | J26: 64 | K26: 0.8987940463 | L26: 194481 | N26: 25.38519704 | O26: 52.68876476 | Q26: 15 | R26: 15 | U26: 19.97379907 | V26: 16.40548475 | X26: 21 | Y26: 8 | AA26: 41.44454714 | AB26: 14.3260495
A27: 22 | B27: 22 | C27: 7 | D27: 10 | E27: 4 | F27: -0.4810088598 | G27: 16.30186927 | H27: 20.91309429 | I27: 19.59091849 | J27: 68 | K27: 0.9271838546 | L27: 234256 | N27: 25.18859317 | O27: 40.04466672 | Q27: 15 | R27: 15 | U27: 19.78353809 | V27: 19.13731393 | X27: 22 | Y27: 7 | AA27: 45.66864003 | AB27: 11.42771678
A28: 23 | B28: 23 | C28: 6 | D28: 27 | E28: 2 | F28: 17.20860437 | G28: 9.965722136 | H28: 18.53135531 | I28: 18.9132153 | J28: 72 | K28: 0.9510565163 | L28: 279841 | N28: 27.53528118 | O28: 54.55804091 | Q28: 15 | R28: 15 | U28: 18.81517066 | V28: 19.88628671 | X28: 23 | Y28: 6 | AA28: 46.51229915 | AB28: 8.689855743 | AF28: NONLINEAR SHAPES
A29: 24 | B29: 24 | C29: 5 | D29: 13 | E29: 23 | F29: 0.6436978193 | G29: 21.74305452 | H29: 21.05009098 | I29: 23.95437392 | J29: 76 | K29: 0.9702957263 | L29: 331776 | N29: 11.32592839 | O29: 1.097641083 | Q29: 15 | R29: 15 | U29: 19.73406798 | V29: 23.77863284 | X29: 24 | Y29: 5 | AA29: 49.89120417 | AB29: 5.493668534 | AF29: Inverted-u | AH29: Exponential | AJ29: Curve fitting
A30: 25 | B30: 25 | C30: 4 | D30: 23 | E30: 17 | F30: 0.1924345852 | G30: 23.5944468 | H30: 24.14019031 | I30: 23.54971359 | J30: 80 | K30: 0.984807753 | L30: 390625 | N30: 2.231968704 | O30: 15.38964027 | Q30: 15 | R30: 15 | U30: 20.95879146 | V30: 20.74562901 | X30: 25 | Y30: 4 | AA30: 52.63162115 | AB30: 4.968353767
A31: 26 | B31: 26 | C31: 43 | D31: 43 | F31: 10.09032644 | G31: 24.39617043 | H31: =($A31-$H$8)+($H$8*RAND()) -> 21.88500282 | I31: 22.97393677 | J31: 84 | K31: 0.9945218954 | L31: 456976 | N31: 22.11831051 | O31: 55.25734963 | Q31: 15 | R31: 15
A32: 27 | B32: 27 | C32: 42 | D32: 42 | F32: 3.745228347 | G32: 21.50569158 | H32: 23.98693345 | I32: 22.50528737 | J32: 88 | K32: 0.999390827 | L32: 531441 | N32: 19.72848561 | O32: 56.38186827 | Q32: 15 | R32: 15
A33: 28 | B33: 28 | C33: 41 | D33: 41 | F33: 23.0783079 | G33: 19.62154357 | H33: 25.73909051 | I33: 25.76665548 | J33: 92 | K33: 0.999390827 | L33: 614656 | N33: 34.14952985 | O33: 22.67357777 | Q33: 15 | R33: 15
A34: 29 | B34: 29 | C34: 40 | D34: 40 | F34: 20.64143055 | G34: 11.30784874 | H34: 26.96836415 | I34: 24.5280511 | J34: 96 | K34: 0.9945218954 | L34: 707281 | N34: 44.20584355 | O34: 35.15061841 | Q34: 15 | R34: 15
A35: 30 | B35: 30 | C35: 39 | D35: 39 | F35: 25.15140413 | G35: 15.63255709 | H35: 29.82683292 | I35: 29.04259707 | J35: 100 | K35: 0.984807753 | L35: 810000 | N35: 25.23882961 | O35: 41.83773892 | Q35: 15 | R35: 15
A36: 31 | B36: 31 | C36: 38 | D36: 38 | F36: 17.71283778 | G36: 11.86647117 | H36: 29.18366993 | I36: 26.42684057 | J36: 104 | K36: 0.9702957263 | L36: 923521 | N36: 23.91823082 | O36: 9.899121078 | Q36: 15 | R36: 15
A37: 32 | B37: 32 | C37: 37 | D37: 37 | F37: 25.24478351 | G37: 19.77744692 | H37: 29.61426123 | I37: 28.94768137 | J37: 108 | K37: 0.9510565163 | L37: 1048576 | N37: 20.30153646 | O37: 2.605734954 | Q37: 15 | R37: 15 | AF37: VISUALIZATION
A38: 33 | B38: 33 | C38: 36 | D38: 36 | F38: 8.557621908 | G38: 29.73346756 | H38: 32.82159355 | I38: 32.07593101 | J38: 112 | K38: 0.9271838546 | L38: 1185921 | N38: 6.487111621 | O38: 44.02748048 | Q38: 15 | R38: 15 | AF38: Clusters | AH38: Outliers | AJ38: Sub-populations
A39: 34 | B39: 34 | C39: 35 | D39: 35 | F39: 33.22895489 | G39: 15.42917407 | H39: 30.99285343 | I39: 30.5138531 | J39: 116 | K39: 0.8987940463 | L39: 1336336 | N39: 54.45099482 | O39: 38.54428465 | Q39: 15 | R39: 15
A40: 35 | B40: 35 | C40: 34 | D40: 34 | F40: 18.63576345 | G40: 21.71707437 | H40: 33.78702336 | I40: 30.06560901 | J40: 120 | K40: 0.8660254038 | L40: 1500625 | N40: 47.98134822 | O40: 18.81979823 | Q40: 15 | R40: 15
A41: 36 | B41: 36 | C41: 33 | D41: 33 | F41: 13.79138095 | G41: 19.07213016 | H41: 35.96271412 | I41: 32.14496721 | J41: 124 | K41: 0.8290375726 | L41: 1679616 | N41: 49.88385878 | O41: 55.28306288 | Q41: 15 | R41: 15
A42: 37 | B42: 37 | C42: 32 | D42: 32 | F42: 20.46234258 | G42: 33.7285972 | H42: 34.93714524 | I42: 32.64038832 | J42: 128 | K42: 0.7880107536 | L42: 1874161 | N42: 5.202751635 | O42: 27.29731691 | Q42: 15 | R42: 15
A43: 38 | B43: 38 | C43: 31 | D43: 31 | F43: 25.73305417 | G43: 29.40699964 | H43: 36.99981479 | I43: 34.29845767 | J43: 132 | K43: 0.7431448255 | L43: 2085136 | N43: 2.086223175 | O43: 8.769056401 | Q43: 15 | R43: 15
A44: 39 | B44: 39 | C44: 30 | D44: 30 | F44: 36.60742407 | G44: 27.30185557 | H44: 38.18544765 | I44: 37.33162246 | J44: 136 | K44: 0.6946583705 | L44: 2313441 | N44: 45.57664993 | O44: 36.45179449 | Q44: 15 | R44: 15
A45: 40 | B45: 40 | C45: 29 | D45: 29 | F45: 18.97658711 | G45: 19.24791389 | H45: 39.77496276 | I45: 35.59339542 | J45: 140 | K45: 0.6427876097 | L45: 2560000 | N45: 38.67719268 | O45: 42.36880855 | Q45: 15 | R45: 15
A46: 41 | B46: 41 | C46: 28 | D46: 28 | F46: 27.59332069 | G46: 36.09300298 | H46: 36.71743382 | I46: 36.42253777 | J46: 144 | K46: 0.5877852523 | L46: 2825761 | N46: 8.365596375 | O46: 53.15034058 | Q46: 15 | R46: 15 | U46: =($A46-$H$8)+($H$8*RAND()) -> 39.26344895 | V46: 37.45408797 | AA46: 36.8857285 | AB46: 39.74322279
A47: 42 | B47: 42 | C47: 27 | D47: 27 | F47: 30.52902998 | G47: 35.75950951 | H47: 41.99688316 | I47: 41.67792272 | J47: 148 | K47: 0.5299192642 | L47: 3111696 | N47: 13.6318772 | O47: 0.4112987181 | Q47: 15 | R47: 15 | U47: 37.24416519 | V47: 38.42973395 | AA47: 39.6168494 | AB47: 37.03536501
A48: 43 | B48: 43 | C48: 26 | D48: 26 | F48: 35.63758763 | G48: 32.41057376 | H48: 42.33408171 | I48: 42.25636507 | J48: 152 | K48: 0.4694715628 | L48: 3418801 | N48: 14.5453911 | O48: 18.61864258 | Q48: 15 | R48: 15 | U48: 38.26008405 | V48: 42.0834443 | AA48: 38.81944767 | AB48: 42.86275031
A49: 44 | B49: 44 | C49: 25 | D49: 25 | F49: 38.33547655 | G49: 26.67050612 | H49: 42.63919188 | I49: 41.49260596 | J49: 156 | K49: 0.4067366431 | L49: 3748096 | N49: 32.20495955 | O49: 20.70631346 | Q49: 15 | R49: 15 | U49: 42.43627206 | V49: 41.38488599 | AA49: 40.1535823 | AB49: 39.64939526
A50: 45 | B50: 45 | C50: 24 | D50: 24 | F50: 27.45366466 | G50: 28.54443664 | H50: 44.87778156 | I50: 42.94892394 | J50: 160 | K50: 0.3420201433 | L50: 4100625 | N50: 43.93996625 | O50: 25.92923322 | Q50: 15 | R50: 15 | U50: 44.72379895 | V50: 43.7739057 | AA50: 42.36861283 | AB50: 41.3367414
A51: 46 | B51: 46 | C51: 23 | D51: 23 | F51: 33.67349199 | G51: 35.20659146 | H51: =($A51-$H$8)+($H$8*RAND()) -> 44.33911409 | I51: 41.24051754 | J51: 164 | K51: 0.2756373558 | L51: 4477456 | N51: 42.38779187 | O51: 56.2028002 | Q51: 15 | R51: 15 | U51: =($A51-$H$8)+($H$8*RAND()) -> 43.897789 | V51: 42.74743086 | AA51: 44.06978925 | AB51: 42.71758062
A52: 47 | B52: 47 | C52: 22 | D52: 22 | F52: 22.64743563 | G52: 38.79444652 | H52: 45.18836089 | I52: 46.29403681 | J52: 168 | K52: 0.2079116908 | L52: 4879681 | N52: 9.931217211 | O52: 16.13502411 | Q52: 15 | R52: 15 | U52: 46.20462315 | V52: 42.14744089 | AA52: 44.38581897 | AB52: 43.44516681
A53: 48 | B53: 48 | C53: 21 | D53: 21 | F53: 46.71583301 | G53: 30.87192206 | H53: 45.28831275 | I53: 47.81326328 | J53: 172 | K53: 0.139173101 | L53: 5308416 | N53: 42.46026158 | O53: 6.556770337 | Q53: 15 | R53: 15 | U53: 47.62779968 | V53: 47.17085108 | AA53: 45.33716005 | AB53: 45.53412369
A54: 49 | B54: 49 | C54: 20 | D54: 20 | F54: 24.75146598 | G54: 41.25807587 | H54: 44.5706384 | I54: 46.66752159 | J54: 176 | K54: 0.06975647374 | L54: 5764801 | N54: 47.64533483 | O54: 33.71036241 | Q54: 15 | R54: 15 | U54: 45.99357299 | V54: 48.00877672 | AA54: 47.05766292 | AB54: 47.41978576
A55: 50 | B55: 50 | C55: 19 | D55: 19 | F55: 28.23009612 | G55: 30.39114339 | H55: 46.66899563 | I55: 47.83088294 | J55: 180 | K55: 1.225148455e-16 | L55: 6250000 | N55: 54.10461416 | O55: 29.4597397 | Q55: 15 | R55: 15 | U55: 49.18269609 | V55: 46.65278883 | AA55: 45.74421981 | AB55: 48.4599292
A56: 51 | B56: 51 | C56: 18 | D56: 18 | F56: 32.25362185 | G56: 26.45816229 | H56: 50.58188401 | I56: 50.01704215 | J56: 184 | K56: -0.06975647374 | L56: 6765201 | N56: 8.458078595 | O56: 57.43387089 | Q56: 15 | R56: 15 | U56: 48.05656974 | V56: 47.01110607 | AA56: 48.85197798 | AB56: 49.65241183
A57: 52 | B57: 52 | C57: 17 | D57: 17 | F57: 28.44475638 | G57: 42.89408071 | H57: 49.88342069 | I57: 47.63273782 | J57: 188 | K57: -0.139173101 | L57: 7311616 | N57: 44.93641127 | O57: 43.76236234 | Q57: 15 | R57: 15 | U57: 49.23608669 | V57: 51.10595333 | AA57: 48.84503449 | AB57: 48.07537786
A58: 53 | B58: 53 | C58: 16 | D58: 16 | F58: 52.90216031 | G58: 45.63341211 | H58: 50.49820484 | I58: 48.90438787 | J58: 192 | K58: -0.2079116908 | L58: 7890481 | N58: 17.23980619 | O58: 17.9196904 | Q58: 15 | R58: 15 | U58: 49.19880518 | V58: 48.45181074 | AA58: 50.73832936 | AB58: 50.81469502
A59: 54 | B59: 54 | C59: 15 | D59: 15 | F59: 47.37568992 | G59: 50.71404912 | H59: 50.8190091 | I59: 51.50038639 | J59: 196 | K59: -0.2756373558 | L59: 8503056 | N59: 30.93126636 | O59: 0.8713696102 | Q59: 15 | R59: 15 | U59: 53.6457772 | V59: 52.28534954 | AA59: 50.71220138 | AB59: 51.29873942
A60: 55 | B60: 55 | C60: 14 | D60: 14 | F60: 52.07281445 | G60: 51.90166654 | H60: 54.40132673 | I60: 50.50798968 | J60: 200 | K60: -0.3420201433 | L60: 9150625 | N60: 24.15608738 | O60: 24.55247415 | Q60: 15 | R60: 15 | U60: 50.27936587 | V60: 50.14674676 | AA60: 54.2186197 | AB60: 52.52227581
A61: 56 | B61: 56 | C61: 13 | D61: 13 | F61: 54.13618396 | G61: 48.03923968 | H61: 53.19600721 | I61: 55.68693145 | J61: 204 | K61: -0.4067366431 | L61: 9834496 | N61: 18.81230644 | O61: 27.74560088 | Q61: 15 | R61: 15 | U61: 54.97651562 | V61: 51.62863689 | AA61: 52.88167458 | AB61: 51.47180294
A62: 57 | B62: 57 | C62: 12 | D62: 12 | F62: 45.88416727 | G62: 55.64427173 | H62: 52.93074005 | I62: 52.35802207 | J62: 208 | K62: -0.4694715628 | L62: 10556001 | N62: 4.218050083 | O62: 37.17340796 | Q62: 15 | R62: 15 | U62: 56.48827801 | V62: 53.69524842 | AA62: 56.64150895 | AB62: 53.32300726
A63: 58 | B63: 58 | C63: 11 | D63: 11 | F63: 47.37901183 | G63: 54.36606778 | H63: 55.96097757 | I63: 54.88026256 | J63: 212 | K63: -0.5299192642 | L63: 11316496 | N63: 34.94193076 | O63: 35.78988062 | Q63: 15 | R63: 15 | U63: 57.22458649 | V63: 53.29997013 | AA63: 53.04016846 | AB63: 57.64292512
A64: 59 | B64: 59 | C64: 10 | D64: 10 | F64: 42.22533608 | G64: 42.42270597 | H64: 55.92968514 | I64: 54.08447097 | J64: 216 | K64: -0.5877852523 | L64: 12117361 | N64: 13.58398992 | O64: 6.056716169 | Q64: 15 | R64: 15 | U64: 56.1049202 | V64: 58.2965982 | AA64: 54.72440735 | AB64: 58.13348915
A65: 60 | B65: 60 | C65: 9 | D65: 9 | F65: 55.15913723 | G65: 45.88540179 | H65: 55.4444026 | I65: 56.18895039 | J65: 220 | K65: -0.6427876097 | L65: 12960000 | N65: 47.40754839 | O65: 23.60570775 | Q65: 15 | R65: 15 | U65: 59.47000948 | V65: 56.73648225 | AA65: 55.58185259 | AB65: 58.14983755
A66: 61 | B66: 61 | C66: 8 | D66: 8 | F66: 48.62735431 | G66: 59.48662074 | H66: 59.17867754 | I66: 57.52249846 | J66: 224 | K66: -0.6946583705 | L66: 13845841 | N66: 20.21937831 | O66: 38.36996627 | Q66: 15 | R66: 15 | U66: 57.10374419 | V66: 59.50354625 | AA66: 59.24976972 | AB66: 58.7436026
A67: 62 | B67: 62 | C67: 7 | D67: 7 | F67: 44.74798533 | G67: 53.58538893 | H67: 59.24486211 | I67: 57.52032301 | J67: 228 | K67: -0.7431448255 | L67: 14776336 | N67: 18.19681704 | O67: 59.51689746 | Q67: 15 | R67: 15 | U67: 57.87916353 | V67: 60.83510947 | AA67: 60.72752089 | AB67: 57.72731625
A68: 63 | B68: 63 | C68: 6 | D68: 6 | F68: 42.95143491 | G68: 57.61223725 | H68: 60.43032648 | I68: 61.33811256 | J68: 232 | K68: -0.7880107536 | L68: 15752961 | N68: 7.209829753 | O68: 40.15679691 | Q68: 15 | R68: 15 | U68: 60.03787854 | V68: 58.24976229 | AA68: 60.70417258 | AB68: 60.07497952
A69: 64 | B69: 64 | C69: 5 | D69: 5 | F69: 48.59665249 | G69: 46.84516336 | H69: 59.06375315 | I69: 62.59778624 | J69: 236 | K69: -0.8290375726 | L69: 16777216 | N69: 16.84602683 | O69: 22.41607112 | Q69: 15 | R69: 15 | U69: 59.29943254 | V69: 60.15097204 | AA69: 62.24473187 | AB69: 59.40669528
A70: 65 | B70: 65 | C70: 4 | D70: 4 | F70: 48.23525827 | G70: 40.23914878 | H70: 64.48976136 | I70: 60.34501873 | J70: 240 | K70: -0.8660254038 | L70: 17850625 | N70: 13.04979867 | O70: 2.773131767 | Q70: 15 | R70: 15 | U70: 63.23943385 | V70: 63.10372092 | AA70: 62.34997255 | AB70: 64.14312102
A71: 66 | B71: 66 | C71: 3 | D71: 3 | F71: 53.32821475 | G71: 62.08161052 | H71: 63.90193018 | I71: 61.89500056 | J71: 244 | K71: -0.8987940463 | L71: 18974736 | N71: 11.54334119 | O71: 28.75038453 | Q71: 15 | R71: 15 | U71: 65.1979123 | V71: 62.73048009 | AA71: 62.19909702 | AB71: 61.44104865
A72: 67 | B72: 67 | C72: 2 | D72: 2 | F72: 44.12199626 | G72: 63.42208938 | H72: 62.7304495 | I72: 65.25216974 | J72: 248 | K72: -0.9271838546 | L72: 20151121 | N72: 35.92349914 | O72: 27.2269332 | Q72: 15 | R72: 15 | U72: 66.46319645 | V72: 64.31328905 | AA72: 64.3992415 | AB72: 64.91977867
A73: 68 | B73: 68 | C73: 1 | D73: 1 | F73: 48.19730406 | G73: 46.48550405 | H73: 64.01950894 | I73: 66.38759256 | J73: 252 | K73: -0.9510565163 | L73: 21381376 | N73: 28.72554869 | O73: 25.51803738 | Q73: 15 | R73: 15 | U73: 65.8009502 | V73: 63.04415145 | AA73: 67.17799075 | AB73: 65.97267509
A74: 69 | B74: 69 | C74: 0 | D74: 0 | F74: 47.72035989 | G74: 64.0657313 | H74: 66.08558472 | I74: 68.48487251 | J74: 256 | K74: -0.9702957263 | L74: 22667121 | N74: 21.22137825 | O74: 52.15338365 | Q74: 15 | R74: 15 | U74: 68.67955196 | V74: 66.97980714 | AA74: 67.18207025 | AB74: 66.44257702

Sheet UN Pop Data
A5: United Nations
A6: Population Division
A7: Department of Economic and Social Affairs
A9: World Population Prospects: The 2015 Revision
A10: File POP/7-2: Male population by five-year age group, major area, region and country, 1950-2100 (thousands)
A11: Estimates, 1950 - 2015
A12: POP/DB/WPP/Rev.2015/POP/F07-2
A13: July 2015 - Copyright © 2015 by United Nations. All rights reserved
A14: Suggested citation: United Nations, Department of Economic and Social Affairs, Population Division (2015). World Population Prospects: The 2015 Revision, DVD Edition.
A17: Index | B17: Variant | C17: Major area, region, country or area * | D17: Notes | E17: Country code | F17: Reference date (as of 1 July) | G17: Young | H17: Adult | I17: Old | J17: Total | L17: Young Dependency | M17: Old Dependency
A18: 14 | B18: Estimates | C18: WORLD | E18: 900 | F18: 2015 | G18: 1915808.379 | H18: 4825484.061 | I18: 608179.659 | J18: 7349472.099 | L18: =+G18/H18*100 -> 39.70189011 | M18: =+I18/H18*100 -> 12.60349534
A19: 182 | B19: Estimates | C19: AFRICA | E19: 903 | F19: 2015 | G19: 485978.779 | H19: 658717.65 | I19: 41481.853 | J19: 1186178.282 | L19: =+G19/H19*100 -> 73.77649271 | M19: =+I19/H19*100 -> 6.297364736
A20: 1064 | B20: Estimates | C20: ASIA | E20: 935 | F20: 2015 | G20: 1074452.785 | H20: 2988295.19 | I20: 330548.039 | J20: 4393296.014 | L20: =+G20/H20*100 -> 35.95537645 | M20: =+I20/H20*100 -> 11.06142526
A21: 1876 | B21: Estimates | C21: EUROPE | E21: 908 | F21: 2015 | G21: 116240.067 | H21: 492399.694 | I21: 129802.309 | J21: 738442.07 | L21: =+G21/H21*100 -> 23.606852 | M21: =+I21/H21*100 -> 26.36116768
A22: 2506 | B22: Estimates | C22: AMERICAS | E22: 904 | F22: 2015 | G22: 229908.302 | H22: 660663.432 | I22: 101652.869 | J22: 992224.603 | L22: =+G22/H22*100 -> 34.79961064 | M22: =+I22/H22*100 -> 15.38648336
A23: 3136 | B23: OCEANIA | C23: OCEANIA | E23: 909 | F23: 2015 | G23: 9228.446 | H23: 25408.095 | I23: 4694.589 | J23: 39331.13 | L23: =+G23/H23*100 -> 36.32088907 | M23: =+I23/H23*100 -> 18.4767453
A24: 210 | B24: AFRICA | C24: Burundi | E24: 108 | F24: 2015 | G24: 5008.304 | H24: 5894.355 | I24: 276.262 | J24: 11178.921 | L24: 84.96780394 | M24: 4.686891102
A25: 224 | B25: AFRICA | C25: Comoros | E25: 174 | F25: 2015 | G25: 317.548 | H25: 448.9 | I25: 22.026 | J25: 788.474 | L25: 70.73914012 | M25: 4.906660726
A26: 238 | B26: AFRICA | C26: Djibouti | E26: 262 | F26: 2015 | G26: 290.645 | H26: 560.045 | I26: 37.171 | J26: 887.861 | L26: 51.89672258 | M26: 6.637145229
A27: 252 | B27: AFRICA | C27: Eritrea | E27: 232 | F27: 2015 | G27: 2236.721 | H27: 2853.507 | I27: 137.563 | J27: 5227.791 | L27: 78.38498381 | M27: 4.82083976
A28: 266 | B28: AFRICA | C28: Ethiopia | E28: 231 | F28: 2015 | G28: 41187.753 | H28: 54740.332 | I28: 3462.665 | J28: 99390.75 | L28: 75.24205918 | M28: 6.325619289
A29: 280 | B29: AFRICA | C29: Kenya | E29: 404 | F29: 2015 | G29: 19299.25 | H29: 25460.518 | I29: 1290.534 | J29: 46050.302 | L29: 75.80069659 | M29: 5.068765687
A30: 294 | B30: AFRICA | C30: Madagascar | E30: 450 | F30: 2015 | G30: 10108.42 | H30: 13439.214 | I30: 687.756 | J30: 24235.39 | L30: 75.21585712 | M30: 5.117531427
A31: 308 | B31: AFRICA | C31: Malawi | E31: 454 | F31: 2015 | G31: 7773.879 | H31: 8848.909 | I31: 592.444 | J31: 17215.232 | L31: 87.8512707 | M31: 6.695107838
A32: 322 | B32: AFRICA | C32: Mauritius | D32: 1 | E32: 480 | F32: 2015 | G32: 246.012 | H32: 905.442 | I32: 121.758 | J32: 1273.212 | L32: 27.17037646 | M32: 13.44735499
A33: 336 | B33: AFRICA | C33: Mayotte | E33: 175 | F33: 2015 | G33: 100.036 | H33: 130.961 | I33: 9.018 | J33: 240.015 | L33: 76.38609968 | M33: 6.886019502
A34: 350 | B34: AFRICA | C34: Mozambique | E34: 508 | F34: 2015 | G34: 12674.956 | H34: 14366.015 | I34: 936.892 | J34: 27977.863 | L34: 88.22875376 | M34: 6.52158584
A35: 364 | B35: AFRICA | C35: Réunion | E35: 638 | F35: 2015 | G35: 203.482 | H35: 569.411 | I35: 88.261 | J35: 861.154 | L35: 35.7355232 | M35: 15.50040305
A36: 378 | B36: AFRICA | C36: Rwanda | E36: 646 | F36: 2015 | G36: 4766.002 | H36: 6519.771 | I36: 323.893 | J36: 11609.666 | L36: 73.10075768 | M36: 4.967858534
A37: 392 | B37: AFRICA | C37: Seychelles | E37: 690 | F37: 2015 | G37: 22.618 | H37: 67.217 | I37: 6.636 | J37: 96.471 | L37: 33.64922564 | M37: 9.872502492
A38: 406 | B38: AFRICA | C38: Somalia | E38: 706 | F38: 2015 | G38: 5038.124 | H38: 5444.348 | I38: 304.632 | J38: 10787.104 | L38: 92.53861068 | M38: 5.595380751
A39: 420 | B39: AFRICA | C39: South Sudan | E39: 728 | F39: 2015 | G39: 5193.326 | H39: 6718.978 | I39: 427.508 | J39: 12339.812 | L39: 77.29339194 | M39: 6.36269385
A40: 434 | B40: AFRICA | C40: Uganda | E40: 800 | F40: 2015 | G40: 18770.929 | H40: 19289.981 | I40: 971.473 | J40: 39032.383 | L40: 97.30921456 | M40: 5.036153224
A41: 448 | B41: AFRICA | C41: United Republic of Tanzania | D41: 2 | E41: 834 | F41: 2015 | G41: 24167.931 | H41: 27590.383 | I41: 1712.106 | J41: 53470.42 | L41: 87.59548934 | M41: 6.205444846
A42: 462 | B42: AFRICA | C42: Zambia | E42: 894 | F42: 2015 | G42: 7443.617 | H42: 8296.609 | I42: 471.541 | J42: 16211.767 | L42: 89.71878752 | M42: 5.683538901
A43: 476 | B43: AFRICA | C43: Zimbabwe | E43: 716 | F43: 2015 | G43: 6490.798 | H43: 8649.405 | I43: 462.548 | J43: 15602.751 | L43: 75.0432891 | M43: 5.347743573
A44: 504 | B44: AFRICA | C44: Angola | E44: 24 | F44: 2015 | G44: 11923.081 | H44: 12520.017 | I44: 578.876 | J44: 25021.974 | L44: 95.23214705 | M44: 4.623603946
A45: 518 | B45: AFRICA | C45: Cameroon | E45: 120 | F45: 2015 | G45: 9926.572 | H45: 12669.29 | I45: 748.317 | J45: 23344.179 | L45: 78.35144669 | M45: 5.906542513
A46: 532 | B46: AFRICA | C46: Central African Republic | E46: 140 | F46: 2015 | G46: 1913.685 | H46: 2797.661 | I46: 188.928 | J46: 4900.274 | L46: 68.40303382 | M46: 6.753069797
A47: 546 | B47: AFRICA | C47: Chad | E47: 148 | F47: 2015 | G47: 6698.729 | H47: 6994.721 | I47: 344.022 | J47: 14037.472 | L47: 95.76835159 | M47: 4.918309108
A48: 560 | B48: AFRICA | C48: Congo | E48: 178 | F48: 2015 | G48: 1969.68 | H48: 2481.507 | I48: 169.143 | J48: 4620.33 | L48: 79.37434793 | M48: 6.816140353
A49: 574 | B49: AFRICA | C49: Democratic Republic of the Congo | E49: 180 | F49: 2015 | G49: 35537.276 | H49: 39439.399 | I49: 2290.139 | J49: 77266.814 | L49: 90.10602824 | M49: 5.806728951
A50: 588 | B50: AFRICA | C50: Equatorial Guinea | E50: 226 | F50: 2015 | G50: 331.778 | H50: 488.894 | I50: 24.388 | J50: 845.06 | L50: 67.86297234 | M50: 4.988402394
A51: 602 | B51: AFRICA | C51: Gabon | E51: 266 | F51: 2015 | G51: 640.548 | H51: 996.669 | I51: 88.075 | J51: 1725.292 | L51: 64.26887964 | M51: 8.836935833
A52: 616 | B52: AFRICA | C52: Sao Tome and Principe | E52: 678 | F52: 2015 | G52: 81.139 | H52: 103.332 | I52: 5.873 | J52: 190.344 | L52: 78.5226261 | M52: 5.683621724
A53: 644 | B53: AFRICA | C53: Algeria | E53: 12 | F53: 2015 | G53: 11320.313 | H53: 25990.793 | I53: 2355.413 | J53: 39666.519 | L53: 43.55508891 | M53: 9.062489936
A54: 658 | B54: AFRICA | C54: Egypt | E54: 818 | F54: 2015 | G54: 30344.337 | H54: 56386.786 | I54: 4776.961 | J54: 91508.084 | L54: 53.81462423 | M54: 8.471773866
A55: 672 | B55: AFRICA | C55: Libya | E55: 434 | F55: 2015 | G55: 1873.037 | H55: 4120.317 | I55: 285.084 | J55: 6278.438 | L55: 45.45856545 | M55: 6.918982205
A56: 686 | B56: AFRICA | C56: Morocco | E56: 504 | F56: 2015 | G56: 9358.267 | H56: 22898.757 | I56: 2120.487 | J56: 34377.511 | L56: 40.86801305 | M56: 9.260271202
A57: 700 | B57: AFRICA | C57: Sudan | E57: 729 | F57: 2015 | G57: 16296.44 | H57: 22599.407 | I57: 1339.035 | J57: 40234.882 | L57: 72.11003368 | M57: 5.925089096
A58: 714 | B58: AFRICA | C58: Tunisia | E58: 788 | F58: 2015 | G58: 2628.463 | H58: 7770.711 | I58: 854.38 | J58: 11253.554 | L58: 33.82525743 | M58: 10.9948755
A59: 728 | B59: AFRICA | C59: Western Sahara | E59: 732 | F59: 2015 | G59: 147.352 | H59: 408.464 | I59: 16.724 | J59: 572.54 | L59: 36.07466019 | M59: 4.094363273
A60: 756 | B60: AFRICA | C60: Botswana | E60: 72 | F60: 2015 | G60: 723.952 | H60: 1457.127 | I60: 81.406 | J60: 2262.485 | L60: 49.68352107 | M60: 5.586747071
A61: 770 | B61: AFRICA | C61: Lesotho | E61: 426 | F61: 2015 | G61: 770.159 | H61: 1276.424 | I61: 88.439 | J61: 2135.022 | L61: 60.33723904 | M61: 6.928653802
A62: 784 | B62: AFRICA | C62: Namibia | E62: 516 | F62: 2015 | G62: 902.148 | H62: 1470.005 | I62: 86.677 | J62: 2458.83 | L62: 61.3704035 | M62: 5.896374502
A63: 798 | B63: AFRICA | C63: South Africa | E63: 710 | F63: 2015 | G63: 15932.575 | H63: 35815.132 | I63: 2742.699 | J63: 54490.406 | L63: 44.4855962 | M63: 7.657933524
A64: 812 | B64: AFRICA | C64: Swaziland | E64: 748 | F64: 2015 | G64: 480.747 | H64: 760.113 | I64: 46.11 | J64: 1286.97 | L64: 63.24678041 | M64: 6.066203315
A65: 840 | B65: AFRICA | C65: Benin | E65: 204 | F65: 2015 | G65: 4586.762 | H65: 5978.513 | I65: 314.554 | J65: 10879.829 | L65: 76.72078324 | M65: 5.261408648
A66: 854 | B66: AFRICA | C66: Burkina Faso | E66: 854 | F66: 2015 | G66: 8251.082 | H66: 9421.166 | I66: 433.322 | J66: 18105.57 | L66: 87.58026342 | M66: 4.599451915
A67: 868 | B67: AFRICA | C67: Cabo Verde | E67: 132 | F67: 2015 | G67: 154.332 | H67: 342.327 | I67: 23.843 | J67: 520.502 | L67: 45.08320991 | M67: 6.96497793
A68: 882 | B68: AFRICA | C68: Côte d'Ivoire | E68: 384 | F68: 2015 | G68: 9642.331 | H68: 12372.068 | I68: 687.157 | J68: 22701.556 | L68: 77.93629165 | M68: 5.554099767
A69: 896 | B69: AFRICA | C69: Gambia | E69: 270 | F69: 2015 | G69: 919.494 | H69: 1025.363 | I69: 46.067 | J69: 1990.924 | L69: 89.67497364 | M69: 4.492750372
A70: 910 | B70: AFRICA | C70: Ghana | E70: 288 | F70: 2015 | G70: 10639.736 | H70: 15839.827 | I70: 930.33 | J70: 27409.893 | L70: 67.17078413 | M70: 5.873359602
A71: 924 | B71: AFRICA | C71: Guinea | E71: 324 | F71: 2015 | G71: 5362.685 | H71: 6859.651 | I71: 386.254 | J71: 12608.59 | L71: =+G71/H71*100 -> 78.17722797 | M71: =+I71/H71*100 -> 5.630811247
A72: 938 | B72: AFRICA | C72: Guinea-Bissau | E72: 624 | F72: 2015 | G72: 752.354 | H72: 1033.535 | I72: 58.436 | J72: 1844.325 | L72: 72.79424499 | M72: 5.653993334
A73: 952 | B73: AFRICA | C73: Liberia | E73: 430 | F73: 2015 | G73: 1905.212 | H73: 2462.608 | I73: 135.618 | J73: 4503.438 | L73: 77.36562214 | M73: 5.50708842
A74: 966 | B74: AFRICA | C74: Mali | E74: 466 | F74: 2015 | G74: 8364.463 | H74: 8791.779 | I74: 443.452 | J74: 17599.694 | L74: 95.13959575 | M74: 5.043939344
A75: 980 | B75: AFRICA | C75: Mauritania | E75: 478 | F75: 2015 | G75: 1627.693 | H75: 2309.304 | I75: 130.567 | J75: 4067.564 | L75: 70.48413721 | M75: 5.653954611
A76: 994 | B76: AFRICA | C76: Niger | E76: 562 | F76: 2015 | G76: 10042.206 | H76: 9343.503 | I76: 513.411 | J76: 19899.12 | L76: 107.4779555 | M76: 5.494844921
A77: 1008 | B77: AFRICA | C77: Nigeria | E77: 566 | F77: 2015 | G77: 80149.125 | H77: 97066.48 | I77: 4986.357 | J77: 182201.962 | L77: 82.57137273 | M77: 5.137053492
A78: 1022 | B78: AFRICA | C78: Senegal | E78: 686 | F78: 2015 | G78: 6620.887 | H78: 8064.565 | I78: 443.821 | J78: 15129.273 | L78: 82.09850128 | M78: 5.50334705
A79: 1036 | B79: AFRICA | C79: Sierra Leone | E79: 694 | F79: 2015 | G79: 2733.758 | H79: 3547.159 | I79: 172.267 | J79: 6453.184 | L79: 77.06894447 | M79: 4.8564781
A80: 1050 | B80: AFRICA | C80: Togo | E80: 768 | F80: 2015 | G80: 3085.39 | H80: 4017.233 | I80: 201.955 | J80: 7304.578 | L80: 76.80385977 | M80: 5.027216495
A81: 1092 | B81: ASIA | C81: China | D81: 4 | E81: 156 | F81: 2015 | G81: 237115.256 | H81: 1007504.41 | I81: 131429.277 | J81: 1376048.943 | L81: 23.53490999 | M81: 13.04503243
A82: 1106 | B82: ASIA | C82: China, Hong Kong SAR | D82: 5 | E82: 344 | F82: 2015 | G82: 871.692 | H82: 5318.683 | I82: 1097.608 | J82: 7287.983 | L82: 16.38924523 | M82: 20.6368381
A83: 1120 | B83: ASIA | C83: China, Macao SAR | D83: 6 | E83: 446 | F83: 2015 | G83: 76.456 | H83: 458.32 | I83: 52.83 | J83: 587.606 | L83: 16.68179438 | M83: 11.52688078
A84: 1134 | B84: ASIA | C84: Dem. People's Republic of Korea | E84: 408 | F84: 2015 | G84: 5324.733 | H84: 17430.908 | I84: 2399.676 | J84: 25155.317 | L84: 30.54765133 | M84: 13.76678713
A85: 1148 | B85: ASIA | C85: Japan | E85: 392 | F85: 2015 | G85: 16271.649 | H85: 76959.829 | I85: 33342.003 | J85: 126573.481 | L85: 21.14304204 | M85: 43.32390473
A86: 1162 | B86: ASIA | C86: Mongolia | E86: 496 | F86: 2015 | G86: 835.301 | H86: 2004.171 | I86: 119.662 | J86: 2959.134 | L86: 41.67813026 | M86: 5.970648213
A87: 1176 | B87: ASIA | C87: Republic of Korea | E87: 410 | F87: 2015 | G87: 7037.41 | H87: 36654.05 | I87: 6601.979 | J87: 50293.439 | L87: 19.19954275 | M87: 18.0115949
A88: 1190 | B88: ASIA | C88: Other non-specified areas | E88: 158 | F88: 2015 | G88: 3184.847 | H88: 17350.968 | I88: 2845.223 | J88: 23381.038 | L88: 18.35544276 | M88: 16.39806494
A89: 1232 | B89: ASIA | C89: Kazakhstan | E89: 398 | F89: 2015 | G89: 4709.002 | H89: 11729.035 | I89: 1187.189 | J89: 17625.226 | L89: 40.14824749 | M89: 10.12179604
A90: 1246 | B90: ASIA | C90: Kyrgyzstan | E90: 417 | F90: 2015 | G90: 1865.246 | H90: 3823.643 | I90: 251.073 | J90: 5939.962 | L90: 48.78190773 | M90: 6.566329545
A91: 1260 | B91: ASIA | C91: Tajikistan | E91: 762 | F91: 2015 | G91: 2954.87 | H91: 5271.996 | I91: 254.989 | J91: 8481.855 | L91: 56.04841127 | M91: 4.836669072
A92: 1274 | B92: ASIA | C92: Turkmenistan | E92: 795 | F92: 2015 | G92: 1516.618 | H92: 3633.611 | I92: 223.273 | J92: 5373.502 | L92: 41.73859007 | M92: 6.144658853
A93: 1288 | B93: ASIA | C93: Uzbekistan | E93: 860 | F93: 2015 | G93: 8525.598 | H93: 19975.53 | I93: 1392.36 | J93: 29893.488 | L93: 42.68020924 | M93: 6.970328197
A94: 1316 | B94: ASIA | C94: Afghanistan | E94: 4 | F94: 2015 | G94: 14325.332 | H94: 17398.12 | I94: 803.11 | J94: 32526.562 | L94: 82.33839058 | M94: 4.616073461
A95: 1330 | B95: ASIA | C95: Bangladesh | E95: 50 | F95: 2015 | G95: 47408.346 | H95: 105580.087 | I95: 8007.209 | J95: 160995.642 | L95: 44.90273436 | M95: 7.584014398
A96: 1344 | B96: ASIA | C96: Bhutan | E96: 64 | F96: 2015 | G96: 208.16 | H96: 527.442 | I96: 39.228 | J96: 774.83 | L96: 39.46595076 | M96: 7.43740544
A97: 1358 | B97: ASIA | C97: India | E97: 356 | F97: 2015 | G97: 377426.895 | H97: 859993.59 | I97: 73630.042 | J97: 1311050.527 | L97: 43.88717537 | M97: 8.561696605
A98: 1372 | B98: ASIA | C98: Iran (Islamic Republic of) | E98: 364 | F98: 2015 | G98: 18677.281 | H98: 56428.18 | I98: 4003.811 | J98: 79109.272 | L98: 33.09920859 | M98: 7.095410485
A99: 1386 | B99: ASIA | C99: Maldives | E99: 462 | F99: 2015 | G99: 99.928 | H99: 246.633 | I99: 17.096 | J99: 363.657 | L99: 40.51688136 | M99: 6.931756902
A100: 1400 | B100: ASIA | C100: Nepal | E100: 524 | F100: 2015 | G100: 9313.746 | H100: 17618.261 | I100: 1581.693 | J100: 28513.7 | L100: 52.86416179 | M100: 8.977577299
A101: 1414 | B101: ASIA | C101: Pakistan | E101: 586 | F101: 2015 | G101: 66142.292 | H101: 114295.357 | I101: 8487.225 | J101: 188924.874 | L101: 57.86962282 | M101: 7.425695341
A102: 1428 | B102: ASIA | C102: Sri Lanka | E102: 144 | F102: 2015 | G102: 5090.472 | H102: 13697.369 | I102: 1927.169 | J102: 20715.01 | L102: 37.16386702 | M102: 14.06962899
A103: 1456 | B103: ASIA | C103: Brunei Darussalam | E103: 96 | F103: 2015 | G103: 97.791 | H103: 306.694 | I103: 18.703 | J103: 423.188 | L103: 31.88552759 | M103: 6.098260807
A104: 1470 | B104: ASIA | C104: Cambodia | E104: 116 | F104: 2015 | G104: 4922.971 | H104: 10013.439 | I104: 641.489 | J104: 15577.899 | L104: 49.16363899 | M104: 6.4062806
A105: 1484 | B105: ASIA | C105: Indonesia | E105: 360 | F105: 2015 | G105: 71325.569 | H105: 172912.592 | I105: 13325.654 | J105: 257563.815 | L105: 41.24949385 | M105: 7.706583914
A106: 1498 | B106: ASIA | C106: Lao People's Democratic Republic | E106: 418 | F106: 2015 | G106: 2365.037 | H106: 4177.789 | I106: 259.197 | J106: 6802.023 | L106: 56.60977613 | M106: 6.204166845
A107: 1512 | B107: ASIA | C107: Malaysia | D107: 8 | E107: 458 | F107: 2015 | G107: 7432.57 | H107: 21122.426 | I107: 1776.011 | J107: 30331.007 | L107: 35.18805084 | M107: 8.408177167
A108: 1526 | B108: ASIA | C108: Myanmar | E108: 104 | F108: 2015 | G108: 14848.99 | H108: 36159.453 | I108: 2888.711 | J108: 53897.154 | L108: 41.06530594 | M108: 7.988812773
A109: 1540 | B109: ASIA | C109: Philippines | E109: 608 | F109: 2015 | G109: 32171.982 | H109: 63915.738 | I109: 4611.675 | J109: 100699.395 | L109: 50.33499261 | M109: 7.21524173
A110: 1554 | B110: ASIA | C110: Singapore | E110: 702 | F110: 2015 | G110: 870.987 | H110: 4078.196 | I110: 654.557 | J110: 5603.74 | L110: 21.3571638 | M110: 16.05016041
A111: 1568 | B111: ASIA | C111: Thailand | E111: 764 | F111: 2015 | G111: 12036.127 | H111: 48806.616 | I111: 7116.616 | J111: 67959.359 | L111: 24.66085131 | M111: 14.58125267
A112: 1582 | B112: ASIA | C112: Timor-Leste | E112: 626 | F112: 2015 | G112: 502.471 | H112: 616.183 | I112: 66.111 | J112: 1184.765 | L112: 81.54574209 | M112: 10.72911781
A113: 1596 | B113: ASIA | C113: Viet Nam | E113: 704 | F113: 2015 | G113: 21576.759 | H113: 65572 | I113: 6298.842 | J113: 93447.601 | L113: 32.90544592 | M113: 9.605993412
A114: 1624 | B114: ASIA | C114: Armenia | E114: 51 | F114: 2015 | G114: 554.773 | H114: 2136.242 | I114: 326.697 | J114: 3017.712 | L114: 25.96957648 | M114: 15.29307073
A115: 1638 | B115: ASIA | C115: Azerbaijan | D115: 9 | E115: 31 | F115: 2015 | G115: 2137.928 | H115: 7067.273 | I115: 548.767 | J115: 9753.968 | L115: 30.25110251 | M115: 7.764904511
A116: 1652 | B116: ASIA | C116: Bahrain | E116: 48 | F116: 2015 | G116: 295.761 | H116: 1048.273 | I116: 33.203 | J116: 1377.237 | L116: 28.2141198 | M116: 3.167400095
A117: 1666 | B117: ASIA | C117: Cyprus | D117: 10 | E117: 196 | F117: 2015 | G117: 192.869 | H117: 822.743 | I117: 149.688 | J117: 1165.3 | L117: 23.44219276 | M117: 18.19377375
A118: 1680 | B118: ASIA | C118: Georgia | D118: 11 | E118: 268 | F118: 2015 | G118: 693.066 | H118: 2745.746 | I118: 561 | J118: 3999.812 | L118: 25.24144622 | M118: 20.43160584
A119: 1694 | B119: ASIA | C119: Iraq | E119: 368 | F119: 2015 | G119: 14927.312 | H119: 20382.898 | I119: 1113.185 | J119: 36423.395 | L119: 73.23449296 | M119: 5.461367662
A120: 1708 | B120: ASIA | C120: Israel | E120: 376 | F120: 2015 | G120: 2244.5 | H120: 4913.218 | I120: 906.318 | J120: 8064.036 | L120: 45.68289052 | M120: 18.44652527
A121: 1722 | B121: ASIA | C121: Jordan | E121: 400 | F121: 2015 | G121: 2697.995 | H121: 4609.03 | I121: 287.522 | J121: 7594.547 | L121: 58.53715424 | M121: 6.23823234
A122: 1736 | B122: ASIA | C122: Kuwait | E122: 414 | F122: 2015 | G122: 868.88 | H122: 2946.556 | I122: 76.679 | J122: 3892.115 | L122: 29.4879853 | M122: 2.602326241
A123: 1750 | B123: ASIA | C123: Lebanon | E123: 422 | F123: 2015 | G123: 1403.771 | H123: 3970.975 | I123: 475.997 | J123: 5850.743 | L123: 35.35078916 | M123: 11.98690498
A124: 1764 | B124: ASIA | C124: Oman | E124: 512 | F124: 2015 | G124: 921.495 | H124: 3453.143 | I124: 115.903 | J124: 4490.541 | L124: 26.68568895 | M124: 3.356449472
A125: 1778 | B125: ASIA | C125: Qatar | E125: 634 | F125: 2015 | G125: 346.962 | H125: 1861.947 | I125: 26.446 | J125: 2235.355 | L125: 18.634365 | M125: 1.42034118
A126: 1792 | B126: ASIA | C126: Saudi Arabia | E126: 682 | F126: 2015 | G126: 9014.873 | H126: 21622.717 | I126: 902.782 | J126: 31540.372 | L126: 41.69167547 | M126: 4.175155231
A127: 1806 | B127: ASIA | C127: State of Palestine | D127: 12 | E127: 275 | F127: 2015 | G127: 1877.781 | H127: 2652.509 | I127: 138.176 | J127: 4668.466 | L127: 70.79263445 | M127: 5.209256594
A128: 1820 | B128: ASIA | C128: Syrian Arab Republic | E128: 760 | F128: 2015 | G128: 6868.598 | H128: 10881.822 | I128: 751.993 | J128: 18502.413 | L128: =+G128/H128*100 -> 63.11992606 | M128: =+I128/H128*100 -> 6.910543106
A129: 1834 | B129: ASIA | C129: Turkey | E129: 792 | F129: 2015 | G129: 20193.918 | H129: 52541.533 | I129: 5930.379 | J129: 78665.83 | L129: 38.43420024 | M129: 11.28703078
A130: 1848 | B130: ASIA | C130: United Arab Emirates | E130: 784 | F130: 2015 | G130: 1276.249 | H130: 7776.519 | I130: 104.195 | J130: 9156.963 | L130: 16.41157181 | M130: 1.339866848
A131: 1862 | B131: ASIA | C131: Yemen | E131: 887 | F131: 2015 | G131: 10803.67 | H131: 15280.727 | I131: 747.818 | J131: 26832.215 | L131: 70.70128273 | M131: 4.893864016
A132: 1904 | B132: EUROPE | C132: Belarus | E132: 112 | F132: 2015 | G132: 1525.809 | H132: 6642.413 | I132: 1327.604 | J132: 9495.826 | L132: 22.97070357 | M132: 19.98677288
A133: 1918 | B133: EUROPE | C133: Bulgaria | E133: 100 | F133: 2015 | G133: 1011.267 | H133: 4706.598 | I133: 1431.922 | J133: 7149.787 | L133: 21.48615624 | M133: 30.42371581
A134: 1932 | B134: EUROPE | C134: Czech Republic | E134: 203 | F134: 2015 | G134: 1585.895 | H134: 7051.506 | I134: 1905.785 | J134: 10543.186 | L134: 22.49016026 | M134: 27.026638
A135: 1946 | B135: EUROPE | C135: Hungary | E135: 348 | F135: 2015 | G135: 1434.764 | H135: 6664.301 | I135: 1755.958 | J135: 9855.023 | L135: 21.5290996 | M135: 26.34871984
A136: 1960 | B136: EUROPE | C136: Poland | E136: 616 | F136: 2015 | G136: 5771.027 | H136: 26843.072 | I136: 5997.695 | J136: 38611.794 | L136: 21.4991302 | M136: 22.3435492
A137: 1974 | B137: EUROPE | C137: Republic of Moldova | D137: 13 | E137: 498 | F137: 2015 | G137: 640.176 | H137: 3023.543 | I137: 405.178 | J137: 4068.897 | L137: 21.17304103 | M137: 13.40076857
A138: 1988 | B138: EUROPE | C138: Romania | E138: 642 | F138: 2015 | G138: 3028.271 | H138: 13104.863 | I138: 3378.19 | J138: 19511.324 | L138: 23.10799434 | M138: 25.77814053
A139: 2002 | B139: EUROPE | C139: Russian Federation | E139: 643 | F139: 2015 | G139: 24031.786 | H139: 100250.906 | I139: 19174.226 | J139: 143456.918 | L139: 23.97163972 | M139: 19.12623712
A140: 2016 | B140: EUROPE | C140: Slovakia | E140: 703 | F140: 2015 | G140: 820.648 | H140: 3854.341 | I140: 751.269 | J140: 5426.258 | L140: 21.29152558 | M140: 19.49150322
A141: 2030 | B141: EUROPE | C141: Ukraine | D141: 14 | E141: 804 | F141: 2015 | G141: 6691.12 | H141: 31271.834 | I141: 6860.811 | J141: 44823.765 | L141: 21.39663443 | M141: 21.9392665
A142: 2058 | B142: EUROPE | C142: Channel Islands | D142: 16 | E142: 830 | F142: 2015 | G142: 24.077 | H142: 111.348 | I142: 28.267 | J142: 163.692 | L142: 21.62319934 | M142: 25.38617667
A143: 2072 | B143: EUROPE | C143: Denmark | E143: 208 | F143: 2015 | G143: 956.998 | H143: 3637.257 | I143: 1074.826 | J143: 5669.081 | L143: 26.31098105 | M143: 29.55045519
A144: 2086 | B144: EUROPE | C144: Estonia | E144: 233 | F144: 2015 | G144: 211.162 | H144: 855.164 | I144: 246.232 | J144: 1312.558 | L144: 24.69257359 | M144: 28.79354136
A145: 2100 | B145: EUROPE | C145: Finland | D145: 17 | E145: 246 | F145: 2015 | G145: 899.173 | H145: 3477.331 | I145: 1126.953 | J145: 5503.457 | L145: 25.8581366 | M145: 32.40856277
A146: 2114 | B146: EUROPE | C146: Iceland | E146: 352 | F146: 2015 | G146: 66.938 | H146: 217.31 | I146: 45.177 | J146: 329.425 | L146: 30.80300032 | M146: 20.78919516
A147: 2128 | B147: EUROPE | C147: Ireland | E147: 372 | F147: 2015 | G147: 1021.174 | H147: 3051.25 | I147: 616.041 | J147: 4688.465 | L147: 33.46739861 | M147: 20.18979107
A148: 2142 | B148: EUROPE | C148: Latvia | E148: 428 | F148: 2015 | G148: 294.041 | H148: 1294.819 | I148: 381.643 | J148: 1970.503 | L148: 22.70904273 | M148: 29.47462155
A149: 2156 | B149: EUROPE | C149: Lithuania | E149: 440 | F149: 2015 | G149: 417.797 | H149: 1918.092 | I149: 542.516 | J149: 2878.405 | L149: 21.78190619 | M149: 28.28414904
A150: 2170 | B150: EUROPE | C150: Norway | D150: 18 | E150: 578 | F150: 2015 | G150: 936.335 | H150: 3423.529 | I150: 851.103 | J150: 5210.967 | L150: 27.3499947 | M150: 24.8603999
A151: 2184 | B151: EUROPE | C151: Sweden | E151: 752 | F151: 2015 | G151: 1690.362 | H151: 6138.849 | I151: 1950.215 | J151: 9779.426 | L151: 27.53548752 | M151: 31.76841457
A152: 2198 | B152: EUROPE | C152: United Kingdom | E152: 826 | F152: 2015 | G152: 11502.731 | H152: 41719.312 | I152: 11493.767 | J152: 64715.81 | L152: 27.57171787 | M152: 27.55023141
A153: 2226 | B153: EUROPE | C153: Albania | E153: 8 | F153: 2015 | G153: 537.224 | H153: 2000.373 | I153: 359.082 | J153: 2896.679 | L153: 26.85619132 | M153: 17.95075218
A154: 2240 | B154: EUROPE | C154: Bosnia and Herzegovina | E154: 70 | F154: 2015 | G154: 514.333 | H154: 2707.604 | I154: 588.479 | J154: 3810.416 | L154: 18.99587237 | M154: 21.73430827
A155: 2254 | B155: EUROPE | C155: Croatia | E155: 191 | F155: 2015 | G155: 631.411 | H155: 2805.914 | I155: 802.992 | J155: 4240.317 | L155: 22.50286359 | M155: 28.61784075
A156: 2268 | B156: EUROPE | C156: Greece | E156: 300 | F156: 2015 | G156: 1599.629 | H156: 7011.077 | I156: 2343.911 | J156: 10954.617 | L156: 22.81573858 | M156: 33.43153983
A157: 2282 | B157: EUROPE | C157: Italy | E157: 380 | F157: 2015 | G157: 8198.491 | H157: 38198.607 | I157: 13400.587 | J157: 59797.685 | L157: 21.46280099 | M157: 35.08134996
A158: 2296 | B158: EUROPE | C158: Malta | E158: 470 | F158: 2015 | G158: 60.423 | H158: 277.661 | I158: 80.586 | J158: 418.67 | L158: 21.7614285 | M158: 29.02316134
A159: 2310 | B159: EUROPE | C159: Montenegro | E159: 499 | F159: 2015 | G159: 116.739 | H159: 423.654 | I159: 85.388 | J159: 625.781 | L159: 27.55526916 | M159: 20.15512659
A160: 2324 | B160: EUROPE | C160: Portugal | E160: 620 | F160: 2015 | G160: 1454.491 | H160: 6743.436 | I160: 2151.876 | J160: 10349.803 | L160: 21.56898946 | M160: 31.9106758
A161: 2338 | B161: EUROPE | C161: Serbia | D161: 20 | E161: 688 | F161: 2015 | G161: 1442.737 | H161: 5896.282 | I161: 1511.956 | J161: 8850.975 | L161: 24.46858885 | M161: 25.64253202
A162: 2352 | B162: EUROPE | C162: Slovenia | E162: 705 | F162: 2015 | G162: 305.672 | H162: 1390.353 | I162: 371.501 | J162: 2067.526 | L162: 21.98520807 | M162: 26.71990495
A163: 2366 | B163: EUROPE | C163: Spain | D163: 21 | E163: 724 | F163: 2015 | G163: 6863.683 | H163: 30591.995 | I163: 8666.021 | J163: 46121.699 | L163: 22.43620594 | M163: 28.32774064
A164: 2380 | B164: EUROPE | C164: TFYR Macedonia | D164: 22 | E164: 807 | F164: 2015 | G164: 352.362 | H164: 1469.967 | I164: 256.124 | J164: 2078.453 | L164: 23.9707422 | M164: 17.42379251
A165: 2408 | B165: EUROPE | C165: Austria | E165: 40 | F165: 2015 | G165: 1213.984 | H165: 5727.712 | I165: 1602.89 | J165: 8544.586 | L165: 21.19492041 | M165: 27.98482186
A166: 2422 | B166: EUROPE | C166: Belgium | E166: 56 | F166: 2015 | G166: 1914.585 | H166: 7325.35 | I166: 2059.257 | J166: 11299.192 | L166: 26.13643034 | M166: 28.11138034
A167: 2436 | B167: EUROPE | C167: France | E167: 250 | F167: 2015 | G167: 11902.535 | H167: 40180.091 | I167: 12312.719 | J167: 64395.345 | L167: 29.62296676 | M167: 30.64383055
A168: 2450 | B168: EUROPE | C168: Germany | E168: 276 | F168: 2015 | G168: 10397.384 | H168: 53152.388 | I168: 17138.773 | J168: 80688.545 | L168: 19.56146166 | M168: 32.24459642
A169: 2464 | B169: EUROPE | C169: Luxembourg | E169: 442 | F169: 2015 | G169: 93.197 | H169: 394.623 | I169: 79.29 | J169: 567.11 | L169: 23.61671773 | M169: 20.0925947
A170: 2478 | B170: EUROPE | C170: Netherlands | E170: 528 | F170: 2015 | G170: 2796.552 | H170: 11042.883 | I170: 3085.494 | J170: 16924.929 | L170: 25.32447369 | M170: 27.94101866
A171: 2492 | B171: EUROPE | C171: Switzerland | E171: 756 | F171: 2015 | G171: 1226.157 | H171: 5575.274 | I171: 1497.232 | J171: 8298.663 | L171: 21.99276663 | M171: 26.85485951
A172: 2534 | B172: AMERICAS | C172: Antigua and Barbuda | E172: 28 | F172: 2015 | G172: 22.2 | H172: 63.04 | I172: 6.578 | J172: 91.818 | L172: 35.21573604 | M172: 10.43464467
A173: 2548 | B173: AMERICAS | C173: Aruba | E173: 533 | F173: 2015 | G173: 19.05 | H173: 72.169 | I173: 12.67 | J173: 103.889 | L173: 26.39637517 | M173: 17.55601436
A174: 2562 | B174: AMERICAS | C174: Bahamas | E174: 44 | F174: 2015 | G174: 81.178 | H174: 274.711 | I174: 32.13 | J174: 388.019 | L174: 29.55032744 | M174: 11.69592772
A175: 2576 | B175: AMERICAS | C175: Barbados | E175: 52 | F175: 2015 | G175: 55.041 | H175: 188.918 | I175: 40.256 | J175: 284.215 | L175: 29.13486274 | M175: 21.30871595
A176: 2590 | B176: AMERICAS | C176: Cuba | E176: 192 | F176: 2015 | G176: 1857.106 | H176: 7941.01 | I176: 1591.446 | J176: 11389.562 | L176: 23.3862695 | M176: 20.04085123
A177: 2604 | B177: AMERICAS | C177: Curaçao | E177: 531 | F177: 2015 | G177: 29.831 | H177: 104.041 | I177: 23.331 | J177: 157.203 | L177: 28.67235032 | M177: 22.42481329
A178: 2618 | B178: AMERICAS | C178: Dominican Republic | E178: 214 | F178: 2015 | G178: 3154.184 | H178: 6673.789 | I178: 700.418 | J178: 10528.391 | L178: 47.26226736 | M178: 10.49505761
A179: 2632 | B179: AMERICAS | C179: Grenada | E179: 308 | F179: 2015 | G179: 28.291 | H179: 70.886 | I179: 7.648 | J179: 106.825 | L179: 39.91056062 | M179: 10.78915442
A180: 2646 | B180: AMERICAS | C180: Guadeloupe | D180: 25 | E180: 312 | F180: 2015 | G180: 102.925 | H180: 297.183 | I180: 68.342 | J180: 468.45 | L180: 34.6335423 | M180: 22.99660479
A181: 2660 | B181: AMERICAS | C181: Haiti | E181: 332 | F181: 2015 | G181: 3614.061 | H181: 6600.992 | I181: 496.014 | J181: 10711.067 | L181: 54.75027087 | M181: 7.514234224
A182: 2674 | B182: AMERICAS | C182: Jamaica | E182: 388 | F182: 2015 | G182: 658.622 | H182: 1879.433 | I182: 255.28 | J182: 2793.335 | L182: 35.04365412 | M182: 13.58281992
A183: 2688 | B183: AMERICAS | C183: Martinique | E183: 474 | F183: 2015 | G183: 68.181 | H183: 252.575 | I183: 75.669 | J183: 396.425 | L183: 26.99435811 | M183: 29.95902207
A184: 2702 | B184: AMERICAS | C184: Puerto Rico | E184: 630 | F184: 2015 | G184: 695.271 | H184: 2455.095 | I184: 532.872 | J184: 3683.238 | L184: 28.31951513 | M184: 21.70474055
A185: 2716 | B185: AMERICAS | C185: Saint Lucia | E185: 662 | F185: 2015 | G185: 42.782 | H185: 125.572 | I185: 16.645 | J185: 184.999 | L185: =+G185/H185*100 -> 34.06969707 | M185: =+I185/H185*100 -> 13.25534355
A186: 2730 | B186: AMERICAS | C186: Saint Vincent and the Grenadines | E186: 670 | F186: 2015 | G186: 26.85 | H186: 74.586 | I186: 8.026 | J186: 109.462 | L186: 35.9987129 | M186: 10.76073258
A187: 2744 | B187: AMERICAS | C187: Trinidad and Tobago | E187: 780 | F187: 2015 | G187: 282.625 | H187: 949.454 | I187: 128.009 | J187: 1360.088 | L187: 29.76710825 | M187: 13.4823804
A188: 2758 | B188: AMERICAS | C188: United States Virgin Islands | E188: 850 | F188: 2015 | G188: 21.642 | H188: 65.938 | I188: 18.711 | J188: 106.291 | L188: 32.82174164 | M188: 28.37665686
A189: 2786 | B189: AMERICAS | C189: Belize | E189: 84 | F189: 2015 | G189: 116.604 | H189: 229.165 | I189: 13.518 | J189: 359.287 | L189: 50.88211551 | M189: 5.898806537
A190: 2800 | B190: AMERICAS | C190: Costa Rica | E190: 188 | F190: 2015 | G190: 1072.567 | H190: 3307.334 | I190: 427.949 | J190: 4807.85 | L190: 32.42995718 | M190: 12.93939469
A191: 2814 | B191: AMERICAS | C191: El Salvador | E191: 222 | F191: 2015 | G191: 1655.93 | H191: 3970.001 | I191: 500.652 | J191: 6126.583 | L191: 41.71107262 | M191: 12.61087844
A192: 2828 | B192: AMERICAS | C192: Guatemala | E192: 320 | F192: 2015 | G192: 5985.23 | H192: 9565.603 | I192: 792.064 | J192: 16342.897 | L192: 62.57033665 | M192: 8.28033528
A193: 2842 | B193: AMERICAS | C193: Honduras | E193: 340 | F193: 2015 | G193: 2564.865 | H193: 5118.291 | I193: 391.904 | J193: 8075.06 | L193: 50.11174628 | M193: 7.6569308
A194: 2856 | B194: AMERICAS | C194: Mexico | E194: 484 | F194: 2015 | G194: 35063.659 | H194: 83739.375 | I194: 8214.19 | J194: 127017.224 | L194: 41.87236769 | M194: 9.809232515
A195: 2870 | B195: AMERICAS | C195: Nicaragua | E195: 558 | F195: 2015 | G195: 1826.695 | H195: 3946.044 | I195: 309.293 | J195: 6082.032 | L195: 46.29180516 | M195: 7.83805249
A196: 2884 | B196: AMERICAS | C196: Panama | E196: 591 | F196: 2015 | G196: 1067.334 | H196: 2561.924 | I196: 299.883 | J196: 3929.141 | L196: 41.66142321 | M196: 11.70538236
A197: 2912 | B197: AMERICAS | C197: Argentina | E197: 32 | F197: 2015 | G197: 10938.503 | H197: 27734.297 | I197: 4743.955 | J197: 43416.755 | L197: 39.44034709 | M197: 17.10501261
A198: 2926 | B198: AMERICAS | C198: Bolivia (Plurinational State of) | E198: 68 | F198: 2015 | G198: 3479.656 | H198: 6551.65 | I198: 693.399 | J198: 10724.705 | L198: 53.11113994 | M198: 10.58357818
A199: 2940 | B199: AMERICAS | C199: Brazil | E199: 76 | F199: 2015 | G199: 47862.393 | H199: 143680.172 | I199: 16304.963 | J199: 207847.528 | L199: 33.31175926 | M199: 11.34809541
A200: 2954 | B200: AMERICAS | C200: Chile | E200: 152 | F200: 2015 | G200: 3616 | H200: 12357.305 | I200: 1974.836 | J200: 17948.141 | L200: 29.26204379 | M200: 15.9811221
A201: 2968 | B201: AMERICAS | C201: Colombia | E201: 170 | F201: 2015 | G201: 11713.196 | H201: 33120.687 | I201: 3394.821 | J201: 48228.704 | L201: 35.36519638 | M201: 10.2498508
A202: 2982 | B202: AMERICAS | C202: Ecuador | E202: 218 | F202: 2015 | G202: 4684.977 | H202: 10377.037 | I202: 1082.349 | J202: 16144.363 | L202: 45.14754067 | M202: 10.43023167
A203: 2996 | B203: AMERICAS | C203: French Guiana | E203: 254 | F203: 2015 | G203: 91.156 | H203: 164.594 | I203: 12.856 | J203: 268.606 | L203: 55.38233471 | M203: 7.810734292
A204: 3010 | B204: AMERICAS | C204: Guyana | E204: 328 | F204: 2015 | G204: 220.974 | H204: 507.707 | I204: 38.404 | J204: 767.085 | L204: 43.52392226 | M204: 7.564205339
A205: 3024 | B205: AMERICAS | C205: Paraguay | E205: 600 | F205: 2015 | G205: 2000.622 | H205: 4238.795 | I205: 399.706 | J205: 6639.123 | L205: 47.19789468 | M205: 9.429708207
A206: 3038 | B206: AMERICAS | C206: Peru | E206: 604 | F206: 2015 | G206: 8752.716 | H206: 20482.451 | I206: 2141.503 | J206: 31376.67 | L206: 42.73275693 | M206: 10.45530635
A207: 3052 | B207: AMERICAS | C207: Suriname | E207: 740 | F207: 2015 | G207: 145.419 | H207: 360.168 | I207: 37.388 | J207: 542.975 | L207: 40.37532485 | M207: 10.38071122
... 17 more rows

Sheet 12.3-12.5
A1: State | B1: Cattle | C1: Beef cows | D1: Milk cows | E1: Hogs and pigs | F1: Sheep | G1: Goats | H1: Bees | I1: Broilers | J1: Turkeys | K1: Horses | L1: Humans | M1: zCattle | N1: zBeef cows | O1: zMilk cows | P1: zHogs and pigs | Q1: zSheep | R1: zGoats | S1: zBees | T1: zBroilers | U1: zTurkeys | V1: zHorses | W1: zHumans
A2: Alabama | B2: 1236467 | C2: 722787 | D2: 9116 | E2: 142555 | F2: 21114 | G2: 52749 | H2: 11628 | I2: 172955409 | J2: 7354 | K2: 63707 | L2: 4822023 | M2: -0.2751321005 | N2: 0.1980579294 | O2: -0.5432483432 | P2: -0.3584945644 | Q2: -0.5984070258 | R2: 0.00262075855 | S2: -0.3802946598 | T2: 2.651704391 | U2: -0.502568084 | V2: -0.1441608192 | W2: -0.2083149077
A3: Alaska | B3: 10667 | C3: 3423 | D3: 1097 | E3: 1009 | F3: 773 | G3: 595 | H3: 546 | I3: 1863 | J3: 3000 | K3: 1581 | L3: 731449 | M3: -0.8737153392 | N3: -0.793726638 | O3: -0.568010023 | P3: -0.4015712223 | Q3: -0.7396438621 | R3: -0.4262291454 | S3: -0.4583057702 | T3: -0.5592603092 | U3: -0.5036575499 | V3: -1.171245238 | W3: -0.7985898116
A4: Arizona | B4: 911334 | C4: 197901 | D4: 193621 | E4: 169603 | F4: 180551 | G4: 71654 | H4: 58461 | I4: 8451 | J4: 2465 | K4: 92394 | L4: 6553255 | M4: -0.4339012016 | N4: -0.5256005168 | O4: 0.02648026824 | P4: -0.3502630535 | Q4: 0.5086367511 | R4: 0.158072065 | S4: -0.05061641292 | T4: -0.5591379998 | U4: -0.5037914186 | V4: 0.3301006934 | W4: 0.04150401813
A5: Arkansas | B5: 1615774 | C5: 813250 | D5: 8972 | E5: 109316 | F5: 18808 | G5: 41610 | H5: 23259 | I5: 170380435 | J5: 8821769 | K5: 61090 | L5: 2949131 | M5: -0.089908726 | N5: 0.3227789431 | O5: -0.5436929974 | P5: -0.3686101808 | Q5: -0.6144186351 | R5: -0.08897258195 | S5: -0.2984188951 | T5: 2.603898777 | U5: 1.70299119 | V5: -0.1874257956 | W5: -0.4785755472
A6: California | B6: 5370531 | C6: 583594 | D6: 1815655 | E6: 111893 | F6: 668517 | G6: 140042 | H6: 945589 | I6: 42268482 | J6: 4532307 | K6: 142555 | L6: 38041430 | M6: 1.743615997 | N6: 0.006153039376 | O6: 5.035120568 | P6: -0.367825923 | Q6: 3.896807148 | R6: 0.7204102793 | S6: 6.194270821 | T6: 0.2254395409 | U6: 0.6296740505 | V6: 1.159376384 | W6: 4.585286743
A7: Colorado | B7: 2630082 | C7: 683291 | D7: 130736 | E7: 727301 | F7: 401376 | G7: 34757 | H7: 34813 | I7: 19571 | J7: 3761 | K7: 110360 | L7: 5187582 | M7: 0.4053986387 | N7: 0.1436049358 | O7: -0.1677008311 | P7: -0.1805389642 | Q7: 2.041925398 | R7: -0.1453231666 | S7: -0.2170851675 | T7: -0.5589315518 | U7: -0.5034671311 | V7: 0.6271196335 | W7: -0.1555642904
A8: Connecticut | B8: 48278 | C8: 8080 | D8: 17740 | E8: 4737 | F8: 6093 | G8: 4393 | H8: 5639 | I8: 79605 | J8: 9421 | K8: 17424 | L8: 3590347 | M8: -0.8553491178 | N8: -0.7873060488 | O8: -0.5166184983 | P8: -0.400436681 | Q8: -0.7027046768 | R8: -0.3949990972 | S8: -0.4224538856 | T8: -0.557816992 | U8: -0.5020508754 | V8: -0.9093243283 | W8: -0.3860472828
A9: Delaware | B9: 18225 | C9: 3833 | D9: 4512 | E9: 5891 | F9: 1040 | G9: 2008 | H9: 817 | I9: 43206514 | J9: 778 | K9: 6157 | L9: 917092 | M9: -0.870024613 | N9: -0.7931613725 | O9: -0.5574649256 | P9: -0.4000854845 | Q9: -0.7377899594 | R9: -0.4146103834 | S9: -0.4563980811 | T9: 0.2428545504 | U9: -0.5042135429 | V9: -1.095593526 | W9: -0.7718012964
A10: Florida | B10: 1675323 | C10: 982790 | D10: 123220 | E10: 14915 | F10: 18232 | G10: 52052 | H10: 206654 | I10: 11031656 | J10: 5567 | K10: 121034 | L10: 19317568 | M10: -0.06082973002 | N10: 0.5565231332 | O10: -0.1909093091 | P10: -0.3973392129 | Q10: -0.6184180657 | R10: -0.003110506225 | S10: 0.9925798043 | T10: -0.3544869651 | U10: -0.5030152304 | V10: 0.8035851889 | W10: 1.883410223 | AC10: GOATS VS. HORSES
A11: Georgia | B11: 1033717 | C11: 469942 | D11: 79492 | E11: 153733 | F11: 21798 | G11: 71709 | H11: 64213 | I11: 243463943 | J11: 2661 | K11: 69861 | L11: 9919945 | M11: -0.3741390769 | N11: -0.1505385655 | O11: -0.3259359627 | P11: -0.3550927665 | Q11: -0.593657702 | R11: 0.1585243168 | S11: -0.01012553521 | T11: 3.960728803 | U11: -0.5037423752 | V11: -0.04242116885 | W11: 0.5273215627
A12: Hawaii | B12: 133957 | C12: 73227 | D12: 1501 | E12: 11441 | F12: 21921 | G12: 12996 | H12: 8630 | I12: 3375 | J12: 117 | K12: 5114 | L12: 1392313 | M12: -0.8135103078 | N12: -0.6974881135 | O12: -0.566762521 | P12: -0.3983964544 | Q12: -0.5928036569 | R12: -0.3242586799 | S12: -0.4013989108 | T12: -0.5592322382 | U12: -0.5043789396 | V12: -1.112836693 | W12: -0.7032263164
A13: Idaho | B13: 2397541 | C13: 485025 | D13: 578761 | E13: 45139 | F13: 231078 | G13: 18139 | H13: 103604 | I13: 9639 | J13: 6696 | K13: 61439 | L13: 1595728 | M13: 0.291844107 | N13: -0.1297436875 | O13: 1.215744935 | P13: -0.3881411507 | Q13: 0.8594687469 | R13: -0.2819690174 | S13: 0.2671651748 | T13: -0.559115944 | U13: -0.50273273 | V13: -0.1816560299 | W13: -0.6738732795
A14: Illinois | B14: 1127630 | C14: 343972 | D14: 98849 | E14: 4630796 | F14: 54675 | G14: 31546 | H14: 10043 | I14: 115927 | J14: 739660 | K14: 62714 | L14: 12875255 | M14: -0.3282794361 | N14: -0.3242129528 | O14: -0.2661639418 | P14: 1.007410668 | Q14: -0.3653777027 | R14: -0.1717264538 | S14: -0.3914521774 | T14: -0.5571426569 | U14: -0.3193291181 | V14: -0.1605773731 | W14: 0.9537764627
A15: Indiana | B15: 821265 | C15: 182627 | D15: 174141 | E15: 3747352 | F15: 52169 | G15: 38632 | H15: 13017 | I15: 6238623 | J15: 5084794 | K15: 97383 | L15: 6537334 | M15: -0.4778837385 | N15: -0.5466587258 | O15: -0.03367156153 | P15: 0.7385523824 | Q15: -0.3827780032 | R15: -0.1134599657 | S15: -0.3705168731 | T15: -0.4434718985 | U15: 0.7679183726 | V15: 0.4125802377 | W15: 0.03920659807
A16: Iowa | B16: 3893683 | C16: 885568 | D16: 204757 | E16: 20455666 | F16: 165815 | G16: 56239 | H16: 30004 | I16: 1948950 | J16: 4383172 | K16: 62206 | L16: 3074186 | M16: 1.02244088 | N16: 0.4224835104 | O16: 0.0608668584 | P16: 5.823389298 | Q16: 0.4063179851 | R16: 0.03131819623 | S16: -0.2509378502 | T16: -0.5231117145 | U16: 0.5923572141 | V16: -0.1689757712 | W16: -0.4605299556
A17: Kansas | B17: 5922187 | C17: 1270538 | D17: 131688 | E17: 1886197 | F17: 62541 | G17: 42315 | H17: 10726 | I17: 17851 | J17: 131247 | K17: 74873 | L17: 2885905 | M17: 2.013000917 | N17: 0.953240269 | O17: -0.1647611729 | P17: 0.1721475584 | Q17: -0.3107604786 | R17: -0.08317553508 | S17: -0.3866442376 | T17: -0.5589634844 | U17: -0.4715673477 | V17: 0.04043861785 | W17: -0.4876991375
A18: Kentucky | B18: 2270871 | C18: 985075 | D18: 71783 | E18: 313360 | F18: 54612 | G18: 64118 | H18: 12669 | I18: 51189742 | J18: 34629 | K18: 141842 | L18: 4380415 | M18: 0.2299885524 | N18: 0.5596734545 | O18: -0.3497404009 | P18: -0.3065135226 | Q18: -0.3658151404 | R18: 0.09610533419 | S18: -0.3729665994 | T18: 0.3910669687 | U18: -0.4957432829 | V18: 1.147588868 | W18: -0.27203949
A19: Louisiana | B19: 788967 | C19: 434252 | D19: 16089 | E19: 6806 | F19: 9843 | G19: 18779 | H19: 34905 | I19: 25061453 | J19: 1400 | K19: 59791 | L19: 4601893 | M19: -0.4936555132 | N19: -0.1997442405 | O19: -0.521716582 | P19: -0.3998070228 | Q19: -0.6766667172 | R19: -0.2767064501 | S19: -0.2164375387 | T19: -0.09401712242 | U19: -0.5040579049 | V19: -0.2089012271 | W19: -0.2400799398
A20: Maine | B20: 86256 | C20: 10505 | D20: 32117 | E20: 8923 | F20: 11925 | G20: 6449 | H20: 14456 | I20: 47252 | J20: 5554 | K20: 11987 | L20: 1329192 | M20: -0.8368036828 | N20: -0.78396271 | O20: -0.4722241011 | P20: -0.3991627567 | Q20: -0.662210442 | R20: -0.3780930995 | S20: -0.3603871142 | T20: -0.5584176408 | U20: -0.5030184833 | V20: -0.999210334 | W20: -0.712334755
A21: Maryland | B21: 194524 | C21: 39188 | D21: 50923 | E21: 19869 | F21: 19265 | G21: 10745 | H21: 7892 | I21: 64192426 | J21: 77375 | K21: 28662 | L21: 5884563 | M21: -0.7839342015 | N21: -0.7444175608 | O21: -0.4141534999 | P21: -0.3958315633 | Q21: -0.6112454758 | R21: -0.3427681161 | S21: -0.4065940199 | T21: 0.6324679709 | U21: -0.4850472995 | V21: -0.7235345671 | W21: -0.05498906721
A22: Massachusetts | B22: 35703 | C22: 6240 | D22: 12500 | E22: 11151 | F22: 12504 | G22: 8599 | H22: 4666 | I22: 18137 | J22: 12142 | K22: 20337 | L22: 6646144 | M22: -0.8614897478 | N22: -0.7898428502 | O22: -0.5327989699 | P22: -0.3984847101 | Q22: -0.6581901811 | R22: -0.3604141623 | S22: -0.4293032639 | T22: -0.5589581746 | U22: -0.5013700217 | V22: -0.8611657971 | W22: 0.05490801609
A23: Michigan | B23: 1130477 | C23: 108126 | D23: 376255 | E23: 1099478 | F23: 86503 | G23: 27059 | H23: 78995 | I23: 1125601 | J23: 2190486 | K23: 87998 | L23: 9883360 | M23: -0.3268891877 | N23: -0.6493729874 | O23: 0.5904314632 | P23: -0.06727443317 | Q23: -0.1443813886 | R23: -0.2086219847 | S23: 0.09393151528 | T23: -0.5383975797 | U23: 0.04369925525 | V23: 0.2574247911 | W23: 0.5220423018
A24: Minnesota | B24: 2412684 | C24: 357826 | D24: 463312 | E24: 7606785 | F24: 126506 | G24: 33721 | H24: 101424 | I24: 7765172 | J24: 19449992 | K24: 66384 | L24: 5379139 | M24: 0.299238744 | N24: -0.3051124927 | O24: 0.8592527078 | P24: 1.913092638 | Q24: 0.1333776774 | R24: -0.1538419475 | S24: 0.2518191885 | T24: -0.4151307915 | U24: 4.362404867 | V24: -0.09990390595 | W24: -0.1279223776
A25: Mississippi | B25: 921508 | C25: 495381 | D25: 14480 | E25: 401898 | F25: 12984 | G25: 24528 | H25: 36097 | I25: 134479892 | J25: 1548 | K25: 58697 | L25: 2984926 | M25: -0.4289330291 | N25: -0.1154659074 | O25: -0.5266849749 | P25: -0.2795687757 | Q25: -0.6548573222 | R25: -0.2294337941 | S25: -0.2080465223 | T25: 1.93738815 | U25: -0.5040208721 | V25: -0.2269875413 | W25: -0.4734102843
A26: Missouri | B26: 3703120 | C26: 1683731 | D26: 92952 | E26: 2774597 | F26: 91967 | G26: 103669 | H26: 14561 | I26: 46880714 | J26: 7572505 | K26: 117295 | L26: 6021988 | M26: 0.9293850649 | N26: 1.522907977 | O26: -0.2843731481 | P26: 0.4425141026 | Q26: -0.1064423456 | R26: 0.4213237748 | S26: -0.3596479727 | T26: 0.3110678179 | U26: 1.390398034 | V26: 0.7417709944 | W26: -0.03515846919
A27: Montana | B27: 2633740 | C27: 1439653 | D27: 13947 | E27: 173953 | F27: 236646 | G27: 10323 | H27: 119002 | I27: 89862 | J27: 20206 | K27: 97921 | L27: 1005141 | M27: 0.407184915 | N27: 1.186398513 | O27: -0.528330813 | P27: -0.3489392191 | Q27: 0.8981299093 | R27: -0.3462381214 | S27: 0.3755585224 | T27: -0.557626566 | U27: -0.4993522327 | V27: 0.4214746043 | W27: -0.7590957164
A28: Nebraska | B28: 6385675 | C28: 1730112 | D28: 54628 | E28: 2992576 | F28: 71771 | G28: 25840 | H28: 44895 | I28: 908965 | J28: 195598 | K28: 64326 | L28: 1855525 | M28: 2.239331598 | N28: 1.586853295 | O28: -0.4027129184 | P28: 0.5088515958 | Q28: -0.2466723808 | R28: -0.218645531 | S28: -0.1461135004 | T28: -0.5424195299 | U28: -0.4554653211 | V28: -0.1339273379 | W28: -0.63638425
A29: Nevada | B29: 420322 | C29: 220150 | D29: 29484 | E29: 2700 | F29: 91934 | G29: 21388 | H29: 10182 | I29: 3813 | J29: 1275 | K29: 22464 | L29: 2758931 | M29: -0.6736724149 | N29: -0.4949259002 | O29: -0.4803544793 | P29: -0.4010566007 | Q29: -0.1066714796 | R29: -0.2552532653 | S29: -0.3904736948 | T29: -0.5592241065 | U29: -0.5040891826 | V29: -0.8260016378 | W29: -0.5060216432
A30: New Hampshire | B30: 33392 | C30: 4075 | D30: 13474 | E30: 3287 | F30: 8079 | G30: 4875 | H30: 2912 | I30: 28924 | J30: 2556 | K30: 9097 | L30: 1320718 | M30: -0.8626182564 | N30: -0.792827728 | O30: -0.5297913784 | P30: -0.4008779592 | Q30: -0.6889149734 | R30: -0.3910357261 | S30: -0.4416504474 | T30: -0.5587579089 | U30: -0.5037686484 | V30: -1.046988623 | W30: -0.7135575637
A31: New Jersey | B31: 31449 | C31: 9500 | D31: 7192 | E31: 7901 | F31: 14924 | G31: 8258 | H31: 13298 | I31: 19945 | J31: 13687 | K31: 27658 | L31: 8864590 | M31: -0.8635670631 | N31: -0.7853482999 | O31: -0.5491894172 | P31: -0.3994737817 | Q31: -0.6413870178 | R31: -0.3632181239 | S31: -0.3685387895 | T31: -0.5589246083 | U31: -0.500983429 | V31: -0.7401329761 | W31: 0.3750325266 | AB31: Cattle | AC31: Beef cows | AD31: Milk cows | AE31: Hogs and pigs | AF31: Sheep | AG31: Goats | AH31: Bees | AI31: Broilers | AJ31: Turkeys | AK31: Horses | AL31: Humans
A32: New Mexico | B32: 1354240 | C32: 461595 | D32: 318878 | E32: 1294 | F32: 89745 | G32: 30981 | H32: 15088 | I32: 3928 | J32: 6425 | K32: 50723 | L32: 2085538 | M32: -0.2176211332 | N32: -0.1620465445 | O32: 0.4132583864 | P32: -0.4014844883 | Q32: -0.1218707046 | R32: -0.1763723141 | S32: -0.3559381861 | T32: -0.5592219715 | U32: -0.5028005401 | V32: -0.358815941 | W32: -0.6031930887 | AA32: Cattle | AC32: =CORREL(INDIRECT("Table2["&$AA32&"]"),INDIRECT("Table2["&AC$31&"]"))^2 -> 0.7872313231 | AD32: 0.151183934 | AE32: 0.04600942162 | AF32: 0.4029455615 | AG32: 0.5330042282 | AH32: 0.1264808822 | AI32: 0.007824267404 | AJ32: 0.008041907359 | AK32: 0.6295865667 | AL32: 0.1738695735 | AM32: Coefficient of determination | AN32: 1
A33: New York | B33: 1419365 | C33: 86030 | D33: 610712 | E33: 74671 | F33: 86286 | G33: 36441 | H33: 70557 | I33: 591576 | J33: 143473 | K33: 90157 | L33: 19570261 | M33: -0.1858192622 | N33: -0.6798366633 | O33: 1.31440567 | P33: -0.3791536847 | Q33: -0.1458881185 | R33: -0.1314760362 | S33: 0.03453269293 | T33: -0.5483120073 | U33: -0.4685081353 | V33: 0.2931179834 | W33: 1.919874136 | AA33: Beef cows | AB33: =CORREL(INDIRECT("Table2["&$AA33&"]"),INDIRECT("Table2["&AB$31&"]")) -> 0.8872605723 | AD33: =CORREL(INDIRECT("Table2["&$AA33&"]"),INDIRECT("Table2["&AD$31&"]"))^2 -> 0.0008568234319 | AE33: 0.0116439062 | AF33: 0.272507335 | AG33: 0.6112566334 | AH33: 0.02884782353 | AI33: 0.04497184426 | AJ33: 0.0004202630955 | AK33: 0.6487854612 | AL33: 0.06775426526
A34: North Carolina | B34: 829717 | C34: 348196 | D34: 45960 | E34: 8901434 | F34: 29224 | G34: 66367 | H34: 24225 | I34: 148251469 | J34: 17191277 | K34: 66870 | L34: 9752073 | M34: -0.4737564539 | N34: -0.3183893392 | O34: -0.4294786299 | P34: 2.307092836 | Q34: -0.5420955986 | R34: 0.1145983248 | S34: -0.2916187929 | T34: 2.193064016 | U34: 3.797225009 | V34: -0.09186921794 | W34: 0.5030974248 | AA34: Milk cows | AB34: 0.3888237827 | AC34: =CORREL(INDIRECT("Table2["&$AA34&"]"),INDIRECT("Table2["&AC$31&"]")) -> 0.02927154646 | AE34: =CORREL(INDIRECT("Table2["&$AA34&"]"),INDIRECT("Table2["&AE$31&"]"))^2 -> 0.0002119041951 | AF34: 0.2935213452 | AG34: 0.05163030596 | AH34: 0.4695113946 | AI34: 0.005722482405 | AJ34: 0.03098979078 | AK34: 0.1299701401 | AL34: 0.4382152225
A35: North Dakota | B35: 1809613 | C35: 881682 | D35: 17876 | E35: 133653 | F35: 64607 | G35: 4740 | H35: 370480 | I35: 24708 | J35: 419319 | K35: 45271 | L35: 699628 | M35: 0.004746826611 | N35: 0.4171258961 | O35: -0.5161985471 | P35: -0.3612037078 | Q35: -0.2964152988 | R35: -0.3921457989 | S35: 2.145823638 | T35: -0.5588361809 | U35: -0.3994854374 | V35: -0.4489499308 | W35: -0.8031816214 | AA35: Hogs and pigs | AB35: 0.214498069 | AC35: 0.1079069331 | AD35: =CORREL(INDIRECT("Table2["&$AA35&"]"),INDIRECT("Table2["&AD$31&"]")) -> 0.01455692945 | AF35: =CORREL(INDIRECT("Table2["&$AA35&"]"),INDIRECT("Table2["&AF$31&"]"))^2 -> 0.000945246502 | AG35: 0.0008227399379 | AH35: 0.00447158675 | AI35: 2.261249166e-07 | AJ35: 0.2436032445 | AK35: 0.002651269612 | AL35: 3.458623227e-05
A36: Ohio | B36: 1242293 | C36: 277949 | D36: 267857 | E36: 2058503 | F36: 111972 | G36: 51558 | H36: 21398 | I36: 12194024 | J36: 2096395 | K36: 114127 | L36: 11544225 | M36: -0.2722871454 | N36: -0.4152386262 | O36: 0.2557118511 | P36: 0.2245853992 | Q36: 0.03246148951 | R36: -0.007172550413 | S36: -0.311519299 | T36: -0.3329070513 | U36: 0.02015563067 | V36: 0.6893967318 | W36: 0.7617071821 | AA36: Sheep | AB36: 0.6347799316 | AC36: 0.5220223511 | AD36: 0.5417761024 | AE36: =CORREL(INDIRECT("Table2["&$AA36&"]"),INDIRECT("Table2["&AE$31&"]")) -> 0.03074486139 | AG36: =CORREL(INDIRECT("Table2["&$AA36&"]"),INDIRECT("Table2["&AG$31&"]"))^2 -> 0.3215689871 | AH36: 0.3754732873 | AI36: 0.003810531477 | AJ36: 0.00198183422 | AK36: 0.4010798771 | AL36: 0.2817361226
A37: Oklahoma | B37: 4245970 | C37: 1677903 | D37: 45885 | E37: 2304740 | F37: 53738 | G37: 89060 | H37: 21011 | I37: 38429952 | J37: 102140 | K37: 158918 | L37: 3814820 | M37: 1.194469835 | N37: 1.514872934 | O37: -0.4297102206 | P37: 0.2995226423 | Q37: -0.3718837209 | R37: 0.3011974519 | S37: -0.3142435636 | T37: 0.1541754089 | U37: -0.4788505552 | V37: 1.429894079 | W37: -0.3536555503 | AA37: Goats | AB37: 0.7300713857 | AC37: 0.7818290308 | AD37: 0.2272230313 | AE37: 0.02868344362 | AF37: =CORREL(INDIRECT("Table2["&$AA37&"]"),INDIRECT("Table2["&AF$31&"]")) -> 0.567070531 | AH37: =CORREL(INDIRECT("Table2["&$AA37&"]"),INDIRECT("Table2["&AH$31&"]"))^2 -> 0.02880347967 | AI37: =CORREL(INDIRECT("Table2["&$AA37&"]"),INDIRECT("Table2["&AI$31&"]"))^2 -> 0.07857687335 | AJ37: =CORREL(INDIRECT("Table2["&$AA37&"]"),INDIRECT("Table2["&AJ$31&"]"))^2 -> 0.003873816344 | AK37: =CORREL(INDIRECT("Table2["&$AA37&"]"),INDIRECT("Table2["&AK$31&"]"))^2 -> 0.7396693614 | AL37: =CORREL(INDIRECT("Table2["&$AA37&"]"),INDIRECT("Table2["&AL$31&"]"))^2 -> 0.2818812589
A38: Oregon | B38: 1297945 | C38: 504279 | D38: 125767 | E38: 12693 | F38: 214613 | G38: 33226 | H38: 82190 | I38: 3294786 | J38: 4770 | K38: 70427 | L38: 3899353 | M38: -0.2451111344 | N38: -0.1031982667 | O38: -0.1830444883 | P38: -0.3980154336 | Q38: 0.7451447456 | R38: -0.1579122145 | S38: 0.1164225365 | T38: -0.4981256302 | U38: -0.5032146573 | V38: -0.03306389845 | W38: -0.3414573335 | AA38: Bees | AB38: 0.355641508 | AC38: 0.1698464705 | AD38: 0.6852090153 | AE38: -0.0668699241 | AF38: 0.6127587513 | AG38: =CORREL(INDIRECT("Table2["&$AA38&"]"),INDIRECT("Table2["&AG$31&"]")) -> 0.1697158793 | AI38: =CORREL(INDIRECT("Table2["&$AA38&"]"),INDIRECT("Table2["&AI$31&"]"))^2 -> 6.391367022e-05 | AJ38: =CORREL(INDIRECT("Table2["&$AA38&"]"),INDIRECT("Table2["&AJ$31&"]"))^2 -> 0.006227263119 | AK38: =CORREL(INDIRECT("Table2["&$AA38&"]"),INDIRECT("Table2["&AK$31&"]"))^2 -> 0.07209357637 | AL38: =CORREL(INDIRECT("Table2["&$AA38&"]"),INDIRECT("Table2["&AL$31&"]"))^2 -> 0.4090703195
A39: Pennsylvania | B39: 1626374 | C39: 148249 | D39: 532335 | E39: 1134957 | F39: 96648 | G39: 50174 | H39: 32023 | I39: 29248115 | J39: 2955993 | K39: 119900 | L39: 12763536 | M39: -0.08473252897 | N39: -0.5940555511 | O39: 1.072387192 | P39: -0.05647711819 | Q39: -0.07394002857 | R39: -0.01855285235 | S39: -0.2367252142 | T39: -0.01628975455 | U39: 0.235245837 | V39: 0.7848375835 | W39: 0.9376552724 | AA39: Broilers | AB39: 0.08845488909 | AC39: 0.2120656603 | AD39: -0.07564709119 | AE39: 0.0004755259368 | AF39: -0.06172950248 | AG39: =CORREL(INDIRECT("Table2["&$AA39&"]"),INDIRECT("Table2["&AG$31&"]")) -> 0.2803156673 | AH39: =CORREL(INDIRECT("Table2["&$AA39&"]"),INDIRECT("Table2["&AH$31&"]")) -> -0.007994602568 | AJ39: =CORREL(INDIRECT("Table2["&$AA39&"]"),INDIRECT("Table2["&AJ$31&"]"))^2 -> 0.05975333381 | AK39: =CORREL(INDIRECT("Table2["&$AA39&"]"),INDIRECT("Table2["&AK$31&"]"))^2 -> 0.04982524945 | AL39: =CORREL(INDIRECT("Table2["&$AA39&"]"),INDIRECT("Table2["&AL$31&"]"))^2 -> 0.03420348226
A40: Rhode Island | B40: 4667 | C40: 1447 | D40: 1209 | E40: 1830 | F40: 1823 | G40: 886 | H40: 739 | I40: 13402 | J40: 6252 | K40: 2417 | L40: 1050292 | M40: -0.876645262 | N40: -0.7964509422 | O40: -0.5676641809 | P40: -0.4013213676 | Q40: -0.7323532334 | R40: -0.4238363218 | S40: -0.4569471576 | T40: -0.5590460822 | U40: -0.5028438285 | V40: -1.157424252 | W40: -0.7525803711 | AA40: Turkeys | AB40: 0.08967668236 | AC40: 0.0205003194 | AD40: 0.176039174 | AE40: 0.493561794 | AF40: 0.04451779666 | AG40: =CORREL(INDIRECT("Table2["&$AA40&"]"),INDIRECT("Table2["&AG$31&"]")) -> 0.06223998991 | AH40: =CORREL(INDIRECT("Table2["&$AA40&"]"),INDIRECT("Table2["&AH$31&"]")) -> 0.07891300982 | AI40: =CORREL(INDIRECT("Table2["&$AA40&"]"),INDIRECT("Table2["&AI$31&"]")) -> 0.2444449505 | AK40: =CORREL(INDIRECT("Table2["&$AA40&"]"),INDIRECT("Table2["&AK$31&"]"))^2 -> 0.009091233035 | AL40: =CORREL(INDIRECT("Table2["&$AA40&"]"),INDIRECT("Table2["&AL$31&"]"))^2 -> 0.01773907807
A41: South Carolina | B41: 297286 | C41: 166745 | D41: 15997 | E41: 224076 | F41: 12684 | G41: 38732 | H41: 10083 | I41: 44296198 | J41: 6999565 | K41: 52395 | L41: 4723723 | M41: -0.7337534129 | N41: -0.5685551823 | O41: -0.5220006666 | P41: -0.3336852994 | Q41: -0.656940359 | R41: -0.1126376896 | S41: -0.3911705997 | T41: 0.2630850512 | U41: 1.247035925 | V41: -0.331173969 | W41: -0.2224997196 | AA41: Horses | AB41: 0.7934649121 | AC41: 0.8054721977 | AD41: 0.3605137169 | AE41: 0.05149048079 | AF41: 0.6333086744 | AG41: =CORREL(INDIRECT("Table2["&$AA41&"]"),INDIRECT("Table2["&AG$31&"]")) -> 0.8600403254 | AH41: =CORREL(INDIRECT("Table2["&$AA41&"]"),INDIRECT("Table2["&AH$31&"]")) -> 0.26850247 | AI41: =CORREL(INDIRECT("Table2["&$AA41&"]"),INDIRECT("Table2["&AI$31&"]")) -> 0.2232157016 | AJ41: =CORREL(INDIRECT("Table2["&$AA41&"]"),INDIRECT("Table2["&AJ$31&"]")) -> 0.09534795769 | AL41: =CORREL(INDIRECT("Table2["&$AA41&"]"),INDIRECT("Table2["&AL$31&"]"))^2 -> 0.3765224812 | AN41: 0
A42: South Dakota | B42: 3893251 | C42: 1610559 | D42: 91831 | E42: 1191162 | F42: 257676 | G42: 16545 | H42: 210447 | I42: 57635 | J42: 2449784 | K42: 68925 | L42: 833354 | M42: 1.022229925 | N42: 1.422026003 | O42: -0.2878346574 | P42: -0.03937226495 | Q42: 1.044150787 | R42: -0.2950760993 | S42: 1.019280413 | T42: -0.5582248755 | U42: 0.1085812819 | V42: -0.05789538281 | W42: -0.7838847937 | AA42: Humans | AB42: 0.4169767062 | AC42: 0.2602964949 | AD42: 0.6619782643 | AE42: -0.005881006059 | AF42: 0.5307882088 | AG42: =CORREL(INDIRECT("Table2["&$AA42&"]"),INDIRECT("Table2["&AG$31&"]")) -> 0.5309249089 | AH42: =CORREL(INDIRECT("Table2["&$AA42&"]"),INDIRECT("Table2["&AH$31&"]")) -> 0.6395860532 | AI42: =CORREL(INDIRECT("Table2["&$AA42&"]"),INDIRECT("Table2["&AI$31&"]")) -> 0.1849418348 | AJ42: =CORREL(INDIRECT("Table2["&$AA42&"]"),INDIRECT("Table2["&AJ$31&"]")) -> 0.1331881304 | AK42: =CORREL(INDIRECT("Table2["&$AA42&"]"),INDIRECT("Table2["&AK$31&"]")) -> 0.6136142772
A43: Tennessee | B43: 1856316 | C43: 874630 | D43: 47978 | E43: 147795 | F43: 43836 | G43: 91716 | H43: 14161 | I43: 30400743 | J43: 3985 | K43: 96541 | L43: 6456243 | M43: 0.02755285777 | N43: 0.407403329 | O43: -0.4232472956 | P43: -0.3568998766 | Q43: -0.4406378211 | R43: 0.3230371064 | S43: -0.36246375 | T43: 0.005109331544 | U43: -0.5034110814 | V43: 0.398660058 | W43: 0.02750506615
A44: Texas | B44: 11159747 | C44: 4329341 | D44: 434928 | E44: 800893 | F44: 623000 | G44: 878914 | H44: 136830 | I44: 107351698 | J44: 1747526 | K44: 395816 | L44: 26059203 | M44: 4.570608706 | N44: 5.170400997 | O44: 0.7716064277 | P44: -0.1581427297 | Q44: 3.580761867 | R44: 6.795978524 | S44: 0.5010577171 | T44: 1.433740348 | U44: -0.06713901774 | V44: 5.346358116 | W44: 2.856236518 | AB44: Correlation coefficient
A45: Utah | B45: 776833 | C45: 369670 | D45: 90449 | E45: 731666 | F45: 287883 | G45: 14723 | H45: 26083 | I45: 5629 | J45: 2894895 | K45: 58979 | L45: 2855287 | M45: -0.4995807939 | N45: -0.2887832124 | O45: -0.2921021024 | P45: -0.1792105648 | Q45: 1.253891759 | R45: -0.3100579708 | S45: -0.2785395073 | T45: -0.5591903916 | U45: 0.2199577821 | V45: -0.2223254384 | W45: -0.4921173529
A46: Vermont | B46: 274251 | C46: 11487 | D46: 134142 | E46: 3874 | F46: 18803 | G46: 10589 | H46: 8624 | I46: 48545 | J46: 3790 | K46: 11666 | L46: 626011 | M46: -0.745001875 | N46: -0.7826088302 | O46: -0.1571835245 | P46: -0.4006993176 | Q46: -0.6144533524 | R46: -0.3440508668 | S46: -0.4014411474 | T46: -0.5583936357 | U46: -0.5034598747 | V46: -1.004517196 | W46: -0.8138046459 | AB46: -1 | AG46: 0 | AL46: 1
A47: Virginia | B47: 1631882 | C47: 657320 | D47: 94105 | E47: 239899 | F47: 84983 | G47: 50831 | H47: 14334 | I47: 38386310 | J47: 5160805 | K47: 86840 | L47: 8185867 | M47: -0.08204285979 | N47: 0.1077988112 | O47: -0.2808128268 | P47: -0.3288698899 | Q47: -0.1549354415 | R47: -0.01315049803 | S47: -0.3612459263 | T47: 0.1533651745 | U47: 0.786937986 | V47: 0.238280411 | W47: 0.2770919555
A48: Washington | B48: 1162792 | C48: 211852 | D48: 266989 | E48: 19861 | F48: 44863 | G48: 27062 | H48: 96685 | I48: 7511065 | J48: 5326 | K48: 64616 | L48: 6897012 | M48: -0.3111091116 | N48: -0.5063663231 | O48: 0.2530315745 | P48: -0.395833998 | Q48: -0.4335068919 | R48: -0.2085973164 | S48: 0.2184592668 | T48: -0.4198484086 | U48: -0.5030755339 | V48: -0.1291329768 | W48: 0.09110857978
A49: West Virginia | B49: 414908 | C49: 191398 | D49: 10095 | E49: 5873 | F49: 31630 | G49: 18825 | H49: 9325 | I49: 14781332 | J49: 1817308 | K49: 26467 | L49: 1855413 | M49: -0.6763161819 | N49: -0.5345661796 | O49: -0.5402253124 | P49: -0.4000909624 | Q49: -0.5253896437 | R49: -0.276328203 | S49: -0.3965064977 | T49: -0.2848724498 | U49: -0.04967803624 | V49: -0.7598229215 | W49: -0.6364004118
A50: Wisconsin | B50: 3494084 | C50: 248305 | D50: 1270091 | E50: 311651 | F50: 80081 | G50: 61111 | H50: 49661 | I50: 7818682 | J50: 3468522 | K50: 103481 | L50: 5726398 | M50: 0.827308506 | N50: -0.4561087027 | O50: 3.350486438 | P50: -0.3070336221 | Q50: -0.1889722623 | R50: 0.07137949032 | S50: -0.1125635137 | T50: -0.414137353 | U50: 0.3634917942 | V50: 0.5133940803 | W50: -0.07781247297
A51: Wyoming | B51: 1307731 | C51: 664254 | D51: 6194 | E51: 85432 | F51: 354785 | G51: 9246 | H51: 45029 | I51: 4857 | J51: 926 | K51: 72461 | L51: 576412 | M51: -0.2403324302 | N51: 0.1173586922 | O51: -0.5522711177 | P51: -0.3758787924 | Q51: 1.718422845 | R51: -0.3550940356 | S51: -0.145170215 | T51: -0.5592047241 | U51: -0.5041765101 | V51: 0.0005627588067 | W51: -0.8209618431
L58: SCATTER PLOT MATRIX FOR EACH PAIR OF SPECIES
L59: Cattle
L60: Beef cows | M60: =CORREL(INDIRECT("Table2["&$L60&"]"),INDIRECT("Table2["&M$70&"]")) -> 0.8872605723 | R60: (Background color encodes correlation)
L61: Milk cows | M61: 0.3888237827 | N61: =CORREL(INDIRECT("Table2["&$L61&"]"),INDIRECT("Table2["&N$70&"]")) -> 0.02927154646 | R61: -1 | V61: 1
L62: Hogs and pigs | M62: 0.214498069 | N62: 0.1079069331 | O62: =CORREL(INDIRECT("Table2["&$L62&"]"),INDIRECT("Table2["&O$70&"]")) -> 0.01455692945
L63: Sheep | M63: 0.6347799316 | N63: 0.5220223511 | O63: 0.5417761024 | P63: =CORREL(INDIRECT("Table2["&$L63&"]"),INDIRECT("Table2["&P$70&"]")) -> 0.03074486139
L64: Goats | M64: 0.7300713857 | N64: 0.7818290308 | O64: 0.2272230313 | P64: 0.02868344362 | Q64: =CORREL(INDIRECT("Table2["&$L64&"]"),INDIRECT("Table2["&Q$70&"]")) -> 0.567070531
L65: Bees | M65: 0.355641508 | N65: 0.1698464705 | O65: 0.6852090153 | P65: -0.0668699241 | Q65: 0.6127587513 | R65: =CORREL(INDIRECT("Table2["&$L65&"]"),INDIRECT("Table2["&R$70&"]")) -> 0.1697158793
L66: Broilers | M66: 0.08845488909 | N66: 0.2120656603 | O66: -0.07564709119 | P66: 0.0004755259368 | Q66: -0.06172950248 | R66: =CORREL(INDIRECT("Table2["&$L66&"]"),INDIRECT("Table2["&R$70&"]")) -> 0.2803156673 | S66: =CORREL(INDIRECT("Table2["&$L66&"]"),INDIRECT("Table2["&S$70&"]")) -> -0.007994602568
L67: Turkeys | M67: 0.08967668236 | N67: 0.0205003194 | O67: 0.176039174 | P67: 0.493561794 | Q67: 0.04451779666 | R67: =CORREL(INDIRECT("Table2["&$L67&"]"),INDIRECT("Table2["&R$70&"]")) -> 0.06223998991 | S67: =CORREL(INDIRECT("Table2["&$L67&"]"),INDIRECT("Table2["&S$70&"]")) -> 0.07891300982 | T67: =CORREL(INDIRECT("Table2["&$L67&"]"),INDIRECT("Table2["&T$70&"]")) -> 0.2444449505
L68: Horses | M68: 0.7934649121 | N68: 0.8054721977 | O68: 0.3605137169 | P68: 0.05149048079 | Q68: 0.6333086744 | R68: =CORREL(INDIRECT("Table2["&$L68&"]"),INDIRECT("Table2["&R$70&"]")) -> 0.8600403254 | S68: =CORREL(INDIRECT("Table2["&$L68&"]"),INDIRECT("Table2["&S$70&"]")) -> 0.26850247 | T68: =CORREL(INDIRECT("Table2["&$L68&"]"),INDIRECT("Table2["&T$70&"]")) -> 0.2232157016 | U68: =CORREL(INDIRECT("Table2["&$L68&"]"),INDIRECT("Table2["&U$70&"]")) -> 0.09534795769
L69: Humans | M69: 0.4169767062 | N69: 0.2602964949 | O69: 0.6619782643 | P69: -0.005881006059 | Q69: 0.5307882088 | R69: =CORREL(INDIRECT("Table2["&$L69&"]"),INDIRECT("Table2["&R$70&"]")) -> 0.5309249089 | S69: =CORREL(INDIRECT("Table2["&$L69&"]"),INDIRECT("Table2["&S$70&"]")) -> 0.6395860532 | T69: =CORREL(INDIRECT("Table2["&$L69&"]"),INDIRECT("Table2["&T$70&"]")) -> 0.1849418348 | U69: =CORREL(INDIRECT("Table2["&$L69&"]"),INDIRECT("Table2["&U$70&"]")) -> 0.1331881304 | V69: =CORREL(INDIRECT("Table2["&$L69&"]"),INDIRECT("Table2["&V$70&"]")) -> 0.6136142772
M70: Cattle | N70: Beef cows | O70: Milk cows | P70: Hogs and pigs | Q70: Sheep | R70: Goats | S70: Bees | T70: Broilers | U70: Turkeys | V70: Horses | W70: Humans

Sheet 12.9-12.12-12.15
A1: Get the data: | D1: Page: | E1: http://goo.gl/qnhcWK | I1: PDF: | J1: http://goo.gl/StNQAm
M6: DIABETES VS. INACTIVITY, OBESITY, AND HYPERTENSION
I10: Vertical | J10: Horizontal
A11: State | B11: Region | C11: Division | D11: Diabetes | E11: Inactivity | F11: Obesity | G11: Hypertension | H11: Population | I11: stripes | J11: stripes
A12: IL | B12: Midwest | C12: East North Central | D12: 10.1 | E12: 23.9 | F12: 29.3 | G12: 30.1 | H12: 12859995 | I12: 20 | J12: 5
A13: IN | B13: Midwest | C13: East North Central | D13: 10.7 | E13: 26.1 | F13: 32.7 | G13: 33.5 | H13: 6619680 | I13: 20 | J13: 5
A14: IA | B14: Midwest | C14: West North Central | D14: 9.5 | E14: 22.6 | F14: 30.9 | G14: 31.4 | H14: 3123899 | I14: 20 | J14: 5 | AA14: 0 | AB14: 0
A15: KS | B15: Midwest | C15: West North Central | D15: 10.3 | E15: 23.8 | F15: 31.3 | G15: 31.3 | H15: 2911641 | I15: 20 | J15: 5 | AA15: 1 | AB15: 1
A16: MI | B16: Midwest | C16: East North Central | D16: 10.4 | E16: 25.5 | F16: 30.7 | G16: 34.6 | H16: 9922576 | I16: 20 | J16: 5 | AA16: 2 | AB16: 2
A17: MN | B17: Midwest | C17: West North Central | D17: 8.1 | E17: 20.2 | F17: 27.6 | G17: 27 | H17: 5489594 | I17: 20 | J17: 5 | AA17: 3 | AB17: 3
A18: MO | B18: Midwest | C18: West North Central | D18: 11.1 | E18: 25 | F18: 30.2 | G18: 32 | H18: 6083672 | I18: 20 | J18: 5 | M18: Source: Trust for America’s Health | AA18: 4 | AB18: 4
A19: NE | B19: Midwest | C19: West North Central | D19: 9.2 | E19: 21.3 | F19: 30.2 | G19: 30.3 | H19: 1896190 | I19: 20 | J19: 5 | AA19: 5 | AB19: 5
A20: ND | B20: Midwest | C20: West North Central | D20: 8.6 | E20: 21.3 | F20: 32.2 | G20: 29.7 | H20: 756927 | I20: 20 | J20: 5 | AA20: 6 | AB20: 6
A21: OH | B21: Midwest | C21: East North Central | D21: 11.7 | E21: 25 | F21: 32.6 | G21: 33.5 | H21: 11613423 | I21: 20 | J21: 5 | AA21: 7 | AB21: 7
A22: SD | B22: Midwest | C22: West North Central | D22: 9.1 | E22: 21.2 | F22: 29.8 | G22: 30.7 | H22: 858469 | I22: 20 | J22: 5 | AA22: 8 | AB22: 8
A23: WI | B23: Midwest | C23: East North Central | D23: 9 | E23: 21.2 | F23: 31.2 | G23: 32.3 | H23: 5771337 | I23: 20 | J23: 5 | M23: HYPERTENSION VS. DIABETES AT STATE LEVEL IN 2015 | AA23: 9 | AB23: 9
A24: CT | B24: Northeast | C24: New England | D24: 9.2 | E24: 20.6 | F24: 26.3 | G24: 31.3 | H24: 3590886 | I24: 20 | J24: 5 | AA24: 10 | AB24: 10
A25: ME | B25: Northeast | C25: New England | D25: 9.5 | E25: 19.7 | F25: 28.2 | G25: 33.3 | H25: 1329328 | I25: 20 | J25: 5
A26: MA | B26: Northeast | C26: New England | D26: 9.7 | E26: 20.1 | F26: 23.3 | G26: 29.4 | H26: 6794422 | I26: 20 | J26: 5
A27: NH | B27: Northeast | C27: New England | D27: 9.1 | E27: 19.3 | F27: 27.4 | G27: 30.1 | H27: 1330608 | I27: 20 | J27: 5
A28: NJ | B28: Northeast | C28: Middle Atlantic | D28: 9.7 | E28: 23.3 | F28: 26.9 | G28: 31.1 | H28: 8958013 | I28: 20 | J28: 5
A29: NY | B29: Northeast | C29: Middle Atlantic | D29: 10 | E29: 25.9 | F29: 27 | G29: 31.5 | H29: 19795791 | I29: 20 | J29: 5
A30: PA | B30: Northeast | C30: Middle Atlantic | D30: 11.2 | E30: 23.3 | F30: 30.2 | G30: 33.7 | H30: 12802503 | I30: 20 | J30: 5
A31: RI | B31: Northeast | C31: New England | D31: 9.4 | E31: 22.5 | F31: 27 | G31: 33.8 | H31: 1056298 | I31: 20 | J31: 5
A32: VT | B32: Northeast | C32: New England | D32: 7.9 | E32: 19 | F32: 24.8 | G32: 31.1 | H32: 626042 | I32: 20 | J32: 5 | AA32: 0 | AB32: 0
A33: AL | B33: South | C33: East South Central | D33: 12.9 | E33: 27.6 | F33: 33.5 | G33: 40.3 | H33: 4858979 | I33: 20 | J33: 5 | AA33: 50 | AB33: 50
A34: KY | B34: South | C34: East South Central | D34: 12.5 | E34: 28.2 | F34: 31.6 | G34: 39.1 | H34: 4425092 | I34: 20 | J34: 5
A35: MS | B35: South | C35: East South Central | D35: 13 | E35: 31.6 | F35: 35.5 | G35: 40.2 | H35: 2992333 | I35: 20 | J35: 5 | M35: Source: Trust for America’s Health
A36: TN | B36: South | C36: East South Central | D36: 13 | E36: 26.8 | F36: 31.2 | G36: 38.8 | H36: 6600299 | I36: 20 | J36: 5
A37: DE | B37: South | C37: South Atlantic | D37: 11.1 | E37: 24.9 | F37: 30.7 | G37: 35.6 | H37: 945934 | I37: 20 | J37: 5
A38: DC | B38: South | C38: South Atlantic | D38: 8.4 | E38: 20.8 | F38: 21.7 | G38: 28.4 | H38: 672228 | I38: 20 | J38: 5
A39: FL | B39: South | C39: South Atlantic | D39: 11.2 | E39: 23.7 | F39: 26.2 | G39: 34.6 | H39: 20271272 | I39: 20 | J39: 5 | M39: HYPERTENSION VS. DIABETES AT STATE LEVEL IN 2015
A40: GA | B40: South | C40: South Atlantic | D40: 11.6 | E40: 23.6 | F40: 30.5 | G40: 35 | H40: 10214860 | I40: 20 | J40: 5
A41: MD | B41: South | C41: South Atlantic | D41: 10.1 | E41: 21.4 | F41: 29.6 | G41: 32.8 | H41: 6006401 | I41: 20 | J41: 5
A42: NC | B42: South | C42: South Atlantic | D42: 10.8 | E42: 23.2 | F42: 29.7 | G42: 35.5 | H42: 10042802 | I42: 20 | J42: 5
A43: SC | B43: South | C43: South Atlantic | D43: 12 | E43: 25.3 | F43: 32.1 | G43: 38.4 | H43: 4896146 | I43: 20 | J43: 5
A44: VA | B44: South | C44: South Atlantic | D44: 9.7 | E44: 23.5 | F44: 28.5 | G44: 32.5 | H44: 8382993 | I44: 20 | J44: 5
A45: WV | B45: South | C45: South Atlantic | D45: 14.1 | E45: 28.7 | F45: 35.7 | G45: 41 | H45: 1844128 | I45: 20 | J45: 5
A46: AR | B46: South | C46: West South Central | D46: 12.7 | E46: 30.7 | F46: 35.9 | G46: 38.7 | H46: 2978204 | I46: 20 | J46: 5
A47: LA | B47: South | C47: West South Central | D47: 11.3 | E47: 29.5 | F47: 34.9 | G47: 39.8 | H47: 4670724 | I47: 20 | J47: 5
A48: OK | B48: South | C48: West South Central | D48: 12 | E48: 28.3 | F48: 33 | G48: 37.5 | H48: 3911338 | I48: 20 | J48: 5
A49: TX | B49: South | C49: West South Central | D49: 11 | E49: 27.6 | F49: 31.9 | G49: 31.2 | H49: 27469114 | I49: 20 | J49: 5
A50: AK | B50: West | C50: Pacific | D50: 7.4 | E50: 19.2 | F50: 29.7 | G50: 29.8 | H50: 738432 | I50: 20 | J50: 5
A51: AZ | B51: West | C51: Mountain | D51: 10 | E51: 21.2 | F51: 28.9 | G51: 30.7 | H51: 6828065 | I51: 20 | J51: 5 | M51: Source: Trust for America’s Health
A52: CA | B52: West | C52: Pacific | D52: 10.3 | E52: 21.7 | F52: 24.7 | G52: 28.7 | H52: 39144818 | I52: 20 | J52: 5
A53: CO | B53: West | C53: Mountain | D53: 7.3 | E53: 16.4 | F53: 21.3 | G53: 26.3 | H53: 5456574 | I53: 20 | J53: 5
A54: HI | B54: West | C54: Pacific | D54: 9.8 | E54: 19.6 | F54: 22.1 | G54: 28.5 | H54: 1431603 | I54: 20 | J54: 5
A55: ID | B55: West | C55: Mountain | D55: 7.6 | E55: 18.7 | F55: 28.9 | G55: 29.4 | H55: 1654930 | I55: 20 | J55: 5 | M55: HYPERTENSION VS. DIABETES AT STATE LEVEL IN 2015
A56: MT | B56: West | C56: Mountain | D56: 8.8 | E56: 19.6 | F56: 26.4 | G56: 29.3 | H56: 1032949 | I56: 20 | J56: 5
A57: NV | B57: West | C57: Mountain | D57: 9.6 | E57: 22.5 | F57: 27.7 | G57: 30.6 | H57: 2890845 | I57: 20 | J57: 5 | U57: Bubble size of centers: | X57: 10000
A58: NM | B58: West | C58: Mountain | D58: 11.5 | E58: 23.3 | F58: 28.4 | G58: 29.5 | H58: 2085109 | I58: 20 | J58: 5
A59: OR | B59: West | C59: Pacific | D59: 9 | E59: 16.5 | F59: 27.9 | G59: 31.8 | H59: 4028977 | I59: 20 | J59: 5
A60: UT | B60: West | C60: Mountain | D60: 7.1 | E60: 16.8 | F60: 25.7 | G60: 24.2 | H60: 2995919 | I60: 20 | J60: 5
A61: WA | B61: West | C61: Pacific | D61: 8.9 | E61: 18.1 | F61: 27.3 | G61: 30.4 | H61: 7170351 | I61: 20 | J61: 5
A62: WY | B62: West | C62: Mountain | D62: 8.4 | E62: 22.1 | F62: 29.5 | G62: 28.7 | H62: 586107 | I62: 20 | J62: 5
M67: Source: Trust for America’s Health

Sheet 12.13
A1: Intra and Extra-EU trade by Member State and by product group [ext_lt_intratrd]
A3: Last update | B3: 2016-04-01T19:05:39 | T3: Longd descriptive | U3: Short descriptive
A4: Extracted on | B4: 2016-04-15T23:58:00.793 | T4: Chemicals and related products, n.e.s. | U4: Chemicals
A5: Source of data | B5: Eurostat | H5: GERMANY AND THE NETHERLANDS: TRADE WITH THE REST OF THE WORLD (EXTRA EU) | T5: Commodities and transactions not classified elsewhere in the SITC | U5: Other Commodities
H6: Share of imports and exports in 2015 by product groups | Q6: 45º Line | T6: Food, drinks and tobacco | U6: Food
A7: PARTNER | B7: Extra EU-28 | Q7: 0 | R7: 0 | T7: Machinery and transport equipment | U7: Machinery
Q8: 25 | R8: 25 | T8: Mineral fuels, lubricants and related materials | U8: Minerals
A9: Get the data: | B9: http://goo.gl/1tGaOJ | T9: Other manufactured goods | U9: Other Manufacture
T10: Raw materials | U10: Raw Materials
B11: INDIC_ET | C11: Share of imports by Member State (%) | D11: Share of exports by Member State (%) | T11: Total - All products | U11: Total
A12: GEO | B12: SITC06/TIME | C12: 2015 | D12: 2015
A13: Germany (until 1990 former territory of the FRG) | B13: Chemicals and related products, n.e.s. | C13: 18.1 | D13: 25.4 | E13: Chemicals
A14: Germany (until 1990 former territory of the FRG) | B14: Commodities and transactions not classified elsewhere in the SITC | C14: 17.1 | D14: 18.4 | E14: Other Commodities
A15: Germany (until 1990 former territory of the FRG) | B15: Food, drinks and tobacco | C15: 14.9 | D15: 12.6 | E15: Food
A16: Germany (until 1990 former territory of the FRG) | B16: Machinery and transport equipment | C16: 21.5 | D16: 38.4 | E16: Machinery
A17: Germany (until 1990 former territory of the FRG) | B17: Mineral fuels, lubricants and related materials | C17: 15.1 | D17: 7.7 | E17: Minerals
A18: Germany (until 1990 former territory of the FRG) | B18: Other manufactured goods | C18: 20.1 | D18: 23.5 | E18: Other Manufacture
A19: Germany (until 1990 former territory of the FRG) | B19: Raw materials | C19: 16.7 | D19: 12.5 | E19: Raw Materials
A20: Germany (until 1990 former territory of the FRG) | B20: Total - All products | C20: 18.8 | D20: 28.2 | E20: Germany
A21: Netherlands | B21: Chemicals and related products, n.e.s. | C21: 13.3 | D21: 7 | E21: Chemicals
A22: Netherlands | B22: Commodities and transactions not classified elsewhere in the SITC | C22: 1.6 | D22: 2.2 | E22: Other Commodities
A23: Netherlands | B23: Food, drinks and tobacco | C23: 16.4 | D23: 13.2 | E23: Food
A24: Netherlands | B24: Machinery and transport equipment | C24: 17.1 | D24: 6.1 | E24: Machinery | H24: Source: Eurostat
A25: Netherlands | B25: Mineral fuels, lubricants and related materials | C25: 15.2 | D25: 20.1 | E25: Minerals
A26: Netherlands | B26: Other manufactured goods | C26: 11.4 | D26: 4.5 | E26: Other Manufacture
A27: Netherlands | B27: Raw materials | C27: 17.3 | D27: 12.4 | E27: Raw Materials
A28: Netherlands | B28: Total - All products | C28: 14.4 | D28: 7 | E28: Netherlands
A30: Belgium | B30: Chemicals and related products, n.e.s. | C30: 17.7 | D30: 11 | E30: =A30&": "&VLOOKUP(B30,$T$4:$U$11,2,FALSE) -> Belgium: Chemicals
A31: Belgium | B31: Commodities and transactions not classified elsewhere in the SITC | C31: 5.2 | D31: 4 | E31: Belgium: Other Commodities
A32: Belgium | B32: Food, drinks and tobacco | C32: 6.8 | D32: 4.4 | E32: Belgium: Food
A33: Belgium | B33: Machinery and transport equipment | C33: 4.6 | D33: 2.5 | E33: Belgium: Machinery
A34: Belgium | B34: Mineral fuels, lubricants and related materials | C34: 3.8 | D34: 11.9 | E34: Belgium: Minerals
A35: Belgium | B35: Other manufactured goods | C35: 9 | D35: 6.6 | E35: Belgium: Other Manufacture
A36: Belgium | B36: Raw materials | C36: 7.8 | D36: 5.1 | E36: Belgium: Raw Materials
A37: Belgium | B37: Total - All products | C37: 7.3 | D37: 5.6 | E37: Belgium: Total
A38: Bulgaria | B38: Chemicals and related products, n.e.s. | C38: 0.5 | D38: 0.3 | E38: Bulgaria: Chemicals
A39: Bulgaria | B39: Commodities and transactions not classified elsewhere in the SITC | C39: 0.3 | D39: 0.6 | E39: Bulgaria: Other Commodities
A40: Bulgaria | B40: Food, drinks and tobacco | C40: 0.4 | D40: 1 | E40: Bulgaria: Food
A41: Bulgaria | B41: Machinery and transport equipment | C41: 0.3 | D41: 0.2 | E41: Bulgaria: Machinery
A42: Bulgaria | B42: Mineral fuels, lubricants and related materials | C42: 1 | D42: 2 | E42: Bulgaria: Minerals
A43: Bulgaria | B43: Other manufactured goods | C43: 0.5 | D43: 0.5 | E43: Bulgaria: Other Manufacture
A44: Bulgaria | B44: Raw materials | C44: 1.4 | D44: 1.5 | E44: Bulgaria: Raw Materials
A45: Bulgaria | B45: Total - All products | C45: 0.5 | D45: 0.5 | E45: Bulgaria: Total
A46: Czech Republic | B46: Chemicals and related products, n.e.s. | C46: 0.7 | D46: 0.5 | E46: Czech Republic: Chemicals
A47: Czech Republic | B47: Commodities and transactions not classified elsewhere in the SITC | C47: 0.4 | D47: 0.4 | E47: Czech Republic: Other Commodities
A48: Czech Republic | B48: Food, drinks and tobacco | C48: 0.4 | D48: 0.5 | E48: Czech Republic: Food
A49: Czech Republic | B49: Machinery and transport equipment | C49: 3.1 | D49: 1.9 | E49: Czech Republic: Machinery
A50: Czech Republic | B50: Mineral fuels, lubricants and related materials | C50: 1.2 | D50: 0.2 | E50: Czech Republic: Minerals
A51: Czech Republic | B51: Other manufactured goods | C51: 1.2 | D51: 1.5 | E51: Czech Republic: Other Manufacture
A52: Czech Republic | B52: Raw materials | C52: 1.3 | D52: 1.1 | E52: Czech Republic: Raw Materials
A53: Czech Republic | B53: Total - All products | C53: 1.7 | D53: 1.3 | E53: Czech Republic: Total
A54: Denmark | B54: Chemicals and related products, n.e.s. | C54: 1 | D54: 3 | E54: Denmark: Chemicals
A55: Denmark | B55: Commodities and transactions not classified elsewhere in the SITC | C55: 1.2 | D55: 0.8 | E55: Denmark: Other Commodities
A56: Denmark | B56: Food, drinks and tobacco | C56: 3.2 | D56: 4.3 | E56: Denmark: Food
A57: Denmark | B57: Machinery and transport equipment | C57: 1.1 | D57: 1.2 | E57: Denmark: Machinery
A58: Denmark | B58: Mineral fuels, lubricants and related materials | C58: 1 | D58: 0.8 | E58: Denmark: Minerals
A59: Denmark | B59: Other manufactured goods | C59: 1.7 | D59: 1.5 | E59: Denmark: Other Manufacture
A60: Denmark | B60: Raw materials | C60: 1.1 | D60: 5.2 | E60: Denmark: Raw Materials
A61: Denmark | B61: Total - All products | C61: 1.4 | D61: 1.9 | E61: Denmark: Total
A62: Estonia | B62: Chemicals and related products, n.e.s. | C62: 0.1 | D62: 0.1 | E62: Estonia: Chemicals
A63: Estonia | B63: Commodities and transactions not classified elsewhere in the SITC | C63: 0.2 | D63: 0 | E63: Estonia: Other Commodities
A64: Estonia | B64: Food, drinks and tobacco | C64: 0.1 | D64: 0.3 | E64: Estonia: Food
A65: Estonia | B65: Machinery and transport equipment | C65: 0.1 | D65: 0.1 | E65: Estonia: Machinery
A66: Estonia | B66: Mineral fuels, lubricants and related materials | C66: 0.2 | D66: 0.5 | E66: Estonia: Minerals
A67: Estonia | B67: Other manufactured goods | C67: 0.1 | D67: 0.2 | E67: Estonia: Other Manufacture
A68: Estonia | B68: Raw materials | C68: 0.2 | D68: 0.6 | E68: Estonia: Raw Materials
A69: Estonia | B69: Total - All products | C69: 0.1 | D69: 0.2 | E69: Estonia: Total
A70: Ireland | B70: Chemicals and related products, n.e.s. | C70: 3.3 | D70: 10.4 | E70: Ireland: Chemicals
A71: Ireland | B71: Commodities and transactions not classified elsewhere in the SITC | C71: 0.1 | D71: 0.1 | E71: Ireland: Other Commodities
A72: Ireland | B72: Food, drinks and tobacco | C72: 0.9 | D72: 2.6 | E72: Ireland: Food
A73: Ireland | B73: Machinery and transport equipment | C73: 1.7 | D73: 1 | E73: Ireland: Machinery
A74: Ireland | B74: Mineral fuels, lubricants and related materials | C74: 0.5 | D74: 0.6 | E74: Ireland: Minerals
A75: Ireland | B75: Other manufactured goods | C75: 0.9 | D75: 1.9 | E75: Ireland: Other Manufacture
A76: Ireland | B76: Raw materials | C76: 0.6 | D76: 1 | E76: Ireland: Raw Materials
A77: Ireland | B77: Total - All products | C77: 1.3 | D77: 2.9 | E77: Ireland: Total
A78: Greece | B78: Chemicals and related products, n.e.s. | C78: 0.7 | D78: 0.2 | E78: Greece: Chemicals
A79: Greece | B79: Commodities and transactions not classified elsewhere in the SITC | C79: 0 | D79: 0.3 | E79: Greece: Other Commodities
A80: Greece | B80: Food, drinks and tobacco | C80: 1 | D80: 1.1 | E80: Greece: Food
A81: Greece | B81: Machinery and transport equipment | C81: 0.7 | D81: 0.1 | E81: Greece: Machinery
A82: Greece | B82: Mineral fuels, lubricants and related materials | C82: 3.1 | D82: 6.6 | E82: Greece: Minerals
A83: Greece | B83: Other manufactured goods | C83: 0.8 | D83: 0.5 | E83: Greece: Other Manufacture
A84: Greece | B84: Raw materials | C84: 1 | D84: 1.7 | E84: Greece: Raw Materials
A85: Greece | B85: Total - All products | C85: 1.2 | D85: 0.7 | E85: Greece: Total
A86: Spain | B86: Chemicals and related products, n.e.s. | C86: 6.1 | D86: 4.6 | E86: Spain: Chemicals
A87: Spain | B87: Commodities and transactions not classified elsewhere in the SITC | C87: 0.4 | D87: 2.3 | E87: Spain: Other Commodities
A88: Spain | B88: Food, drinks and tobacco | C88: 9.6 | D88: 7.7 | E88: Spain: Food
A89: Spain | B89: Machinery and transport equipment | C89: 3.7 | D89: 3.7 | E89: Spain: Machinery
A90: Spain | B90: Mineral fuels, lubricants and related materials | C90: 10 | D90: 10.4 | E90: Spain: Minerals
A91: Spain | B91: Other manufactured goods | C91: 6.1 | D91: 5.8 | E91: Spain: Other Manufacture
A92: Spain | B92: Raw materials | C92: 11.6 | D92: 8.8 | E92: Spain: Raw Materials
A93: Spain | B93: Total - All products | C93: 6.4 | D93: 5 | E93: Spain: Total
A94: France | B94: Chemicals and related products, n.e.s. | C94: 8.6 | D94: 11 | E94: =A94&": "&VLOOKUP(B94,$T$4:$U$11,2,FALSE) -> France: Chemicals
A95: France | B95: Commodities and transactions not classified elsewhere in the SITC | C95: 2.4 | D95: 6.7 | E95: France: Other Commodities
A96: France | B96: Food, drinks and tobacco | C96: 9.1 | D96: 18.2 | E96: France: Food
A97: France | B97: Machinery and transport equipment | C97: 9.9 | D97: 10.5 | E97: France: Machinery
A98: France | B98: Mineral fuels, lubricants and related materials | C98: 10.4 | D98: 6.6 | E98: France: Minerals
A99: France | B99: Other manufactured goods | C99: 10 | D99: 9.8 | E99: France: Other Manufacture
A100: France | B100: Raw materials | C100: 5.8 | D100: 6.7 | E100: France: Raw Materials
A101: France | B101: Total - All products | C101: 9.5 | D101: 10.5 | E101: France: Total
A102: Croatia | B102: Chemicals and related products, n.e.s. | C102: 0.3 | D102: 0.2 | E102: Croatia: Chemicals
A103: Croatia | B103: Commodities and transactions not classified elsewhere in the SITC | C103: 0 | D103: 0 | E103: Croatia: Other Commodities
A104: Croatia | B104: Food, drinks and tobacco | C104: 0.4 | D104: 0.6 | E104: Croatia: Food
A105: Croatia | B105: Machinery and transport equipment | C105: 0.1 | D105: 0.1 | E105: Croatia: Machinery
A106: Croatia | B106: Mineral fuels, lubricants and related materials | C106: 0.4 | D106: 0.7 | E106: Croatia: Minerals
A107: Croatia | B107: Other manufactured goods | C107: 0.2 | D107: 0.2 | E107: Croatia: Other Manufacture
A108: Croatia | B108: Raw materials | C108: 0.2 | D108: 0.7 | E108: Croatia: Raw Materials
A109: Croatia | B109: Total - All products | C109: 0.2 | D109: 0.2 | E109: Croatia: Total
A110: Italy | B110: Chemicals and related products, n.e.s. | C110: 8.5 | D110: 5.8 | E110: Italy: Chemicals
A111: Italy | B111: Commodities and transactions not classified elsewhere in the SITC | C111: 7.8 | D111: 7.5 | E111: Italy: Other Commodities
A112: Italy | B112: Food, drinks and tobacco | C112: 9 | D112: 9.9 | E112: Italy: Food
A113: Italy | B113: Machinery and transport equipment | C113: 5.5 | D113: 9.8 | E113: Italy: Machinery
A114: Italy | B114: Mineral fuels, lubricants and related materials | C114: 12.1 | D114: 11.1 | E114: Italy: Minerals
A115: Italy | B115: Other manufactured goods | C115: 10.2 | D115: 16.2 | E115: Italy: Other Manufacture
A116: Italy | B116: Raw materials | C116: 11.8 | D116: 6.9 | E116: Italy: Raw Materials
A117: Italy | B117: Total - All products | C117: 8.9 | D117: 10.4 | E117: Italy: Total
A118: Cyprus | B118: Chemicals and related products, n.e.s. | C118: 0.1 | D118: 0.1 | E118: Cyprus: Chemicals
A119: Cyprus | B119: Commodities and transactions not classified elsewhere in the SITC | C119: 0 | D119: 0 | E119: Cyprus: Other Commodities
A120: Cyprus | B120: Food, drinks and tobacco | C120: 0.2 | D120: 0.1 | E120: Cyprus: Food
A121: Cyprus | B121: Machinery and transport equipment | C121: 0 | D121: 0 | E121: Cyprus: Machinery
A122: Cyprus | B122: Mineral fuels, lubricants and related materials | C122: 0.1 | D122: 0.3 | E122: Cyprus: Minerals
A123: Cyprus | B123: Other manufactured goods | C123: 0.1 | D123: 0 | E123: Cyprus: Other Manufacture
A124: Cyprus | B124: Raw materials | C124: 0 | D124: 0.1 | E124: Cyprus: Raw Materials
A125: Cyprus | B125: Total - All products | C125: 0.1 | D125: 0 | E125: Cyprus: Total
A126: Latvia | B126: Chemicals and related products, n.e.s. | C126: 0.2 | D126: 0.1 | E126: Latvia: Chemicals
A127: Latvia | B127: Commodities and transactions not classified elsewhere in the SITC | C127: 0 | D127: 0 | E127: Latvia: Other Commodities
A128: Latvia | B128: Food, drinks and tobacco | C128: 0.2 | D128: 0.7 | E128: Latvia: Food
A129: Latvia | B129: Machinery and transport equipment | C129: 0.1 | D129: 0.1 | E129: Latvia: Machinery
A130: Latvia | B130: Mineral fuels, lubricants and related materials | C130: 0.2 | D130: 0.1 | E130: Latvia: Minerals
A131: Latvia | B131: Other manufactured goods | C131: 0.2 | D131: 0.2 | E131: Latvia: Other Manufacture
A132: Latvia | B132: Raw materials | C132: 0.2 | D132: 0.9 | E132: Latvia: Raw Materials
A133: Latvia | B133: Total - All products | C133: 0.2 | D133: 0.2 | E133: Latvia: Total
A134: Lithuania | B134: Chemicals and related products, n.e.s. | C134: 0.5 | D134: 0.3 | E134: Lithuania: Chemicals
A135: Lithuania | B135: Commodities and transactions not classified elsewhere in the SITC | C135: 0 | D135: 0 | E135: Lithuania: Other Commodities
A136: Lithuania | B136: Food, drinks and tobacco | C136: 0.5 | D136: 1.3 | E136: Lithuania: Food
A137: Lithuania | B137: Machinery and transport equipment | C137: 0.1 | D137: 0.3 | E137: Lithuania: Machinery
A138: Lithuania | B138: Mineral fuels, lubricants and related materials | C138: 1.4 | D138: 1.7 | E138: Lithuania: Minerals
A139: Lithuania | B139: Other manufactured goods | C139: 0.3 | D139: 0.6 | E139: Lithuania: Other Manufacture
A140: Lithuania | B140: Raw materials | C140: 0.8 | D140: 0.9 | E140: Lithuania: Raw Materials
A141: Lithuania | B141: Total - All products | C141: 0.5 | D141: 0.5 | E141: Lithuania: Total
A142: Luxembourg | B142: Chemicals and related products, n.e.s. | C142: 0.1 | D142: 0 | E142: Luxembourg: Chemicals
A143: Luxembourg | B143: Commodities and transactions not classified elsewhere in the SITC | C143: 0.1 | D143: 0.1 | E143: Luxembourg: Other Commodities
A144: Luxembourg | B144: Food, drinks and tobacco | C144: 0.1 | D144: 0 | E144: Luxembourg: Food
A145: Luxembourg | B145: Machinery and transport equipment | C145: 0.8 | D145: 0.1 | E145: Luxembourg: Machinery
A146: Luxembourg | B146: Mineral fuels, lubricants and related materials | C146: 0 | D146: 0 | E146: Luxembourg: Minerals
A147: Luxembourg | B147: Other manufactured goods | C147: 0.3 | D147: 0.3 | E147: Luxembourg: Other Manufacture
A148: Luxembourg | B148: Raw materials | C148: 0.1 | D148: 0 | E148: Luxembourg: Raw Materials
A149: Luxembourg | B149: Total - All products | C149: 0.3 | D149: 0.1 | E149: Luxembourg: Total
A150: Hungary | B150: Chemicals and related products, n.e.s. | C150: 0.9 | D150: 0.8 | E150: Hungary: Chemicals
A151: Hungary | B151: Commodities and transactions not classified elsewhere in the SITC | C151: 0 | D151: 0.1 | E151: Hungary: Other Commodities
A152: Hungary | B152: Food, drinks and tobacco | C152: 0.3 | D152: 1 | E152: Hungary: Food
A153: Hungary | B153: Machinery and transport equipment | C153: 2 | D153: 1.2 | E153: Hungary: Machinery
A154: Hungary | B154: Mineral fuels, lubricants and related materials | C154: 1.1 | D154: 0.8 | E154: Hungary: Minerals
A155: Hungary | B155: Other manufactured goods | C155: 0.6 | D155: 0.8 | E155: Hungary: Other Manufacture
A156: Hungary | B156: Raw materials | C156: 0.7 | D156: 0.7 | E156: Hungary: Raw Materials
A157: Hungary | B157: Total - All products | C157: 1.1 | D157: 0.9 | E157: Hungary: Total
A158: Malta | B158: Chemicals and related products, n.e.s. | C158: 0.1 | D158: 0 | E158: =A158&": "&VLOOKUP(B158,$T$4:$U$11,2,FALSE) -> Malta: Chemicals
A159: Malta | B159: Commodities and transactions not classified elsewhere in the SITC | C159: 0 | D159: 0 | E159: Malta: Other Commodities
A160: Malta | B160: Food, drinks and tobacco | C160: 0.1 | D160: 0.2 | E160: Malta: Food
A161: Malta | B161: Machinery and transport equipment | C161: 0.2 | D161: 0.1 | E161: Malta: Machinery
A162: Malta | B162: Mineral fuels, lubricants and related materials | C162: 0.1 | D162: 0.2 | E162: Malta: Minerals
A163: Malta | B163: Other manufactured goods | C163: 0.1 | D163: 0 | E163: Malta: Other Manufacture
A164: Malta | B164: Raw materials | C164: 0 | D164: 0 | E164: Malta: Raw Materials
A165: Malta | B165: Total - All products | C165: 0.1 | D165: 0.1 | E165: Malta: Total
A166: Austria | B166: Chemicals and related products, n.e.s. | C166: 3 | D166: 2.1 | E166: Austria: Chemicals
A167: Austria | B167: Commodities and transactions not classified elsewhere in the SITC | C167: 3.8 | D167: 0.4 | E167: Austria: Other Commodities
A168: Austria | B168: Food, drinks and tobacco | C168: 1.4 | D168: 2 | E168: Austria: Food
A169: Austria | B169: Machinery and transport equipment | C169: 1.9 | D169: 2.4 | E169: Austria: Machinery
A170: Austria | B170: Mineral fuels, lubricants and related materials | C170: 1.5 | D170: 0.6 | E170: Austria: Minerals
A171: Austria | B171: Other manufactured goods | C171: 1.7 | D171: 3.1 | E171: Austria: Other Manufacture
A172: Austria | B172: Raw materials | C172: 1.6 | D172: 2.4 | E172: Austria: Raw Materials
A173: Austria | B173: Total - All products | C173: 1.9 | D173: 2.3 | E173: Austria: Total
A174: Poland | B174: Chemicals and related products, n.e.s. | C174: 2.2 | D174: 1.2 | E174: Poland: Chemicals
A175: Poland | B175: Commodities and transactions not classified elsewhere in the SITC | C175: 4.6 | D175: 0.1 | E175: Poland: Other Commodities
A176: Poland | B176: Food, drinks and tobacco | C176: 2.5 | D176: 3.6 | E176: Poland: Food
A177: Poland | B177: Machinery and transport equipment | C177: 3.4 | D177: 2.2 | E177: Poland: Machinery
A178: Poland | B178: Mineral fuels, lubricants and related materials | C178: 3.1 | D178: 1 | E178: Poland: Minerals
A179: Poland | B179: Other manufactured goods | C179: 2.6 | D179: 2.6 | E179: Poland: Other Manufacture
A180: Poland | B180: Raw materials | C180: 3.2 | D180: 2.1 | E180: Poland: Raw Materials
A181: Poland | B181: Total - All products | C181: 3 | D181: 2.1 | E181: Poland: Total
A182: Portugal | B182: Chemicals and related products, n.e.s. | C182: 0.6 | D182: 0.4 | E182: Portugal: Chemicals
A183: Portugal | B183: Commodities and transactions not classified elsewhere in the SITC | C183: 0 | D183: 0 | E183: Portugal: Other Commodities
A184: Portugal | B184: Food, drinks and tobacco | C184: 1.4 | D184: 1.3 | E184: Portugal: Food
A185: Portugal | B185: Machinery and transport equipment | C185: 0.4 | D185: 0.4 | E185: Portugal: Machinery
A186: Portugal | B186: Mineral fuels, lubricants and related materials | C186: 1.8 | D186: 2.1 | E186: Portugal: Minerals
A187: Portugal | B187: Other manufactured goods | C187: 0.6 | D187: 1.3 | E187: Portugal: Other Manufacture
A188: Portugal | B188: Raw materials | C188: 1.2 | D188: 1.8 | E188: Portugal: Raw Materials
A189: Portugal | B189: Total - All products | C189: 0.8 | D189: 0.8 | E189: Portugal: Total
A190: Romania | B190: Chemicals and related products, n.e.s. | C190: 0.7 | D190: 0.3 | E190: Romania: Chemicals
A191: Romania | B191: Commodities and transactions not classified elsewhere in the SITC | C191: 0.2 | D191: 0.2 | E191: Romania: Other Commodities
A192: Romania | B192: Food, drinks and tobacco | C192: 0.9 | D192: 1.6 | E192: Romania: Food
A193: Romania | B193: Machinery and transport equipment | C193: 0.8 | D193: 0.7 | E193: Romania: Machinery
A194: Romania | B194: Mineral fuels, lubricants and related materials | C194: 0.9 | D194: 1.8 | E194: Romania: Minerals
A195: Romania | B195: Other manufactured goods | C195: 0.9 | D195: 0.8 | E195: Romania: Other Manufacture
A196: Romania | B196: Raw materials | C196: 1.1 | D196: 2.4 | E196: Romania: Raw Materials
A197: Romania | B197: Total - All products | C197: 0.8 | D197: 0.8 | E197: Romania: Total
A198: Slovenia | B198: Chemicals and related products, n.e.s. | C198: 0.5 | D198: 0.5 | E198: Slovenia: Chemicals
A199: Slovenia | B199: Commodities and transactions not classified elsewhere in the SITC | C199: 0 | D199: 0 | E199: Slovenia: Other Commodities
A200: Slovenia | B200: Food, drinks and tobacco | C200: 0.6 | D200: 0.3 | E200: Slovenia: Food
A201: Slovenia | B201: Machinery and transport equipment | C201: 0.6 | D201: 0.3 | E201: Slovenia: Machinery
A202: Slovenia | B202: Mineral fuels, lubricants and related materials | C202: 0.3 | D202: 0.2 | E202: Slovenia: Minerals
... 35 more rows
